Workbook

Sheet MainPage
A1: PI-SEC Scenario Calculator | B1: Front Page
A2: Neighbourhood: | B2: Furuset
A4: Climate Zone | B4: 1. Sør-Norge, innland
A6: KEY DATA | B6: Now | C6: End of project
A7: Project timeframe | B7: 2015 | C7: 2030
A8: Area
A9: Population | B9: 280
A10: Number of jobs | B10: 150
A11: Area of buildings (m2 BRA) | B11: 25000
A12: Number of buildings | B12: 2
A14: GOALS | B14: KPI | C14: Category | D14: Sub category | E14: Sector | F14: Unit | G14: Comparison | H14: Relative to | I14: Goal at EoP
A19: Menu
A27: Scenarioes
A28: Initial

Sheet Initial
A1: =MainPage!A1 -> PI-SEC Scenario Calculator | B1: Initial Situation | C1: =ProjectStart -> 2015
A2: Neighbourhood | B2: =MainPage!B2 -> Furuset
A3: Buildings
A4: General description | H4: Energy performance | O4: Thermal Energy supply system | AO4: Renewable energy production | AV4: Emission Data | AW4: Construction site data
N5: Heating | X5: Hot Water | AG5: Cooling | AO5: Solar Thermal (surplus) | AR5: Solar PV (total) | AV5: Materials | AW5: Construction Machines | AX5: Thermal energy
A6: Building | B6: Category | C6: Year of construction | D6: Area [m2] | E6: Ownership | F6: residents/ employees [#] | G6: Res above 13y/ Other Users [#] | H6: Energy certificate | I6: Performance input | J6: Heating [kWh/m2] | K6: Hot Water [kWh/m2] | L6: Cooling [kWh/m2] | M6: Electricity [kWh/m2] | N6: Source 1 | O6: Coverage [%] | P6: Efficiency/COP [-] | Q6: Source 2 | R6: Coverage [%] | S6: Efficiency/COP [-] | T6: Source 3 | U6: Coverage [%] | V6: Efficiency/COP [-] | W6: Source 1 | X6: Coverage [%] | Y6: Efficiency/COP [%] | Z6: Source 2 | AA6: Coverage [%] | AB6: Efficiency/COP [%] | AC6: Source 3 | AD6: Coverage [%] | AE6: Efficiency/COP [%] | AF6: Source 1 | AG6: Coverage [%] | AH6: Efficiency/COP [-] | AI6: Source 2 | AJ6: Coverage [%] | AK6: Efficiency/COP [%] | AL6: Source 3 | AM6: Coverage [%] | AN6: Efficiency/COP [%] | AO6: Size [m2] | AP6: Peak production [kWp] | AQ6: Yearly production [kWh] | AR6: Size [m2] | AS6: Input type | AT6: Peak production [kWp] | AU6: Yearly production [kWh] | AV6: Life cycle emission [tCO2 eqv./y] | AW6: Fuel | AX6: Fuel
A7: Building 1 | B7: Residential apartment building | C7: 1988 | D7: 20000 | E7: Housing cooperative | F7: 280 | G7: 25 | H7: F | I7: TEK 87 | J7: 99.7 | K7: 29.8 | L7: 0 | M7: 35.1 | N7: Electric heater | O7: 1 | P7: 0.88209 | W7: Electric water heater | X7: 1 | Y7: 0.58212
A8: Building2 | B8: Office building | C8: 2000 | D8: 5000 | E8: Private | F8: 150 | G8: 105 | H8: E | I8: TEK 97 | J8: 78.3 | K8: 5 | L8: 20.8 | M8: 100.3 | N8: Heat pump | O8: 0.7 | P8: 2.252925 | Q8: Electric boiler | R8: 0.3 | S8: 0.85652 | W8: Heat Pump | X8: 0.6 | Y8: 1.4229 | Z8: Electric bolier | AA8: 0.4 | AB8: 0.54 | AF8: Local Chiller | AG8: 1 | AH8: 2.45
J10: 0 | K10: 0 | L10: 0 | M10: 0
A12: Infrastructure
A13: General description | D13: Energy performance
A14: Outdoor lighting | B14: Year of installation | C14: # units | D14: Energy performance Category | E14: Energy consumption [kWh/unit]
A15: Street1 | B15: 2010 | C15: 200 | D15: High efficicency | E15: 160
A17: Snow Melt Systems | B17: Year of installation | C17: Size [m2] | D17: Energy performance Category | E17: Energy consumption [kW/m2] | F17: Energy source | G17: Efficiency/COP [-]
A18: Street1 | B18: 2010 | C18: 400 | D18: High efficicency | E18: 100 | F18: Electric boiler | G18: 0.85652
A21: Local energy plant
A22: Energy Source | E22: Heating to District Heating system | G22: Cooling to District Cooling system | I22: Electricity to grid
A23: Type | B23: Energy Source | C23: CO2 Emission [g/kWh] | D23: Efficiceny [%] | E23: Capacity [kW] | F23: Production [kWh] | G23: Capacity [kW] | H23: Production [kWh] | I23: Capacity [kW] | J23: Production [kWh]
A27: District Heating
A28: Energy Source | E28: Distribution
A29: Heat Source | B29: Coverage [%] | C29: CO2 Emission [g/kWh] | D29: Production efficiency [%] | E29: Distribution losses
A30: Electricity | B30: 0.282 | C30: 123 | D30: 0.95 | E30: 0.1
A31: Heat Pump | B31: 0.079 | C31: 123 | D31: 3.125
A32: Solar Collector | C32: 0 | D32: 1
A33: Waste Heat | C33: 0 | D33: 0.9
A34: Waste Incineration | B34: 0.576 | C34: 11 | D34: 0.9
A35: Wood Chips | C35: 18 | D35: 0.9
A36: Pellets | B36: =5.3%*32.8% -> 0.017384 | C36: 19 | D36: 0.9
A37: Bio-oil | B37: =5.3%*67.2% -> 0.035616 | C37: 10 | D37: 0.9
A38: Bio-gas | C38: 10 | D38: 0.9
A39: Fossile Oil | B39: 0.002 | C39: 268 | D39: 0.9
A40: LPG | B40: 0.008 | C40: 235 | D40: 0.9
A43: Transport
A44: Population | E44: Trip Generation | K44: Travel method distribution | Q44: Location: | S44: Oslo, Groruddalen | W44: Other Travel Data | AC44: Parking Capacity
E45: Users | J45: Other Users | K45: Work | N45: Service | Q45: Private errand | T45: Other | W45: Average distance | Y45: # passengers | AB45: Public Transport | AC45: Factor | AD45: Distribution of reduction
A46: Building Category | B46: Area [m2] | C46: residents/ employees [#] | D46: Res above 13y/ Other Users [#] | E46: Work | F46: Service | G46: Private errand | H46: Utside Service | I46: Goods transport | K46: Walk/bike | L46: Public transport | M46: Car | N46: Walk/bike | O46: Public transport | P46: Car | Q46: Walk/bike | R46: Public transport | S46: Car | T46: Walk/bike | U46: Public transport | V46: Car | W46: Public Transport | X46: Car | Y46: Buss | Z46: Rail | AA46: Car | AB46: % using track | AC46: 1-0 | AD46: Walk/ Bike | AE46: Public Transport | AF46: Car sharing
A47: Residential individual housing | B47: =SUMIF(BuildingCategoryRange,A47,BuildingAreaRange) -> 0 | C47: =SUMIF(BuildingCategoryRange,A47,BuildingResidentsRange) -> 0 | D47: =SUMIF(BuildingCategoryRange,A47,BuildingUserRange) -> 0 | E47: 0.8 | F47: 0.1 | G47: 1 | H47: 1.7 | I47: 0.1 | J47: 0 | K47: 0.11 | L47: 0.5 | M47: 0.39 | N47: 0.08 | O47: 0.23 | P47: 0.69 | Q47: 0.33 | R47: 0.22 | S47: 0.45 | T47: 0.39 | U47: 0.28 | V47: 0.33 | W47: 13.8 | X47: 16 | Y47: 19.4 | Z47: 100 | AA47: 1.3 | AB47: 0.6 | AC47: =NA() ->  | AD47: =NA() ->  | AE47: =NA() ->  | AF47: =NA() -> 
A48: Residential apartment building | B48: 20000 | C48: 280 | D48: 25 | E48: 0.8 | F48: 0.1 | G48: 1 | H48: 1.7 | I48: 0.1 | J48: 0 | K48: 0.11 | L48: 0.5 | M48: 0.39 | N48: 0.08 | O48: 0.23 | P48: 0.69 | Q48: 0.33 | R48: 0.22 | S48: 0.45 | T48: 0.39 | U48: 0.28 | V48: 0.33 | W48: 13.8 | X48: 16 | Y48: 19.4 | Z48: 100 | AA48: 1.3 | AB48: 0.6 | AC48: =NA() ->  | AD48: =NA() ->  | AE48: =NA() ->  | AF48: =NA() -> 
A49: Office building | B49: 5000 | C49: 150 | D49: 105 | E49: 1.6 | F49: 0.6 | G49: 0.2 | H49: 0.1 | I49: 0.2 | J49: 1.43 | K49: 0.09 | L49: 0.3 | M49: 0.61 | N49: 0.08 | O49: 0.23 | P49: 0.69 | Q49: 0.33 | R49: 0.22 | S49: 0.45 | T49: 0.39 | U49: 0.28 | V49: 0.33 | W49: 13.8 | X49: 16 | Y49: 19.4 | Z49: 100 | AA49: 1.3 | AB49: 0.6 | AC49: 1 | AD49: 0.15 | AE49: 0.75 | AF49: 0.1
A50: Kindergarten | B50: 0 | C50: 0 | D50: 0 | E50: 1.6 | F50: 0.6 | G50: 0.2 | H50: 0.1 | I50: 0.2 | J50: 0.79 | K50: 0.09 | L50: 0.3 | M50: 0.61 | N50: 0.08 | O50: 0.23 | P50: 0.69 | Q50: 0.33 | R50: 0.22 | S50: 0.45 | T50: 0.39 | U50: 0.28 | V50: 0.33 | W50: 13.8 | X50: 16 | Y50: 19.4 | Z50: 100 | AA50: 1.3 | AB50: 0.6 | AC50: 1 | AD50: 0.15 | AE50: 0.75 | AF50: 0.1
A51: School | B51: 0 | C51: 0 | D51: 0 | E51: 1.6 | F51: 0.6 | G51: 0.2 | H51: 0.1 | I51: 0.2 | J51: 0.83 | K51: 0.09 | L51: 0.3 | M51: 0.61 | N51: 0.08 | O51: 0.23 | P51: 0.69 | Q51: 0.33 | R51: 0.22 | S51: 0.45 | T51: 0.39 | U51: 0.28 | V51: 0.33 | W51: 13.8 | X51: 16 | Y51: 19.4 | Z51: 100 | AA51: 1.3 | AB51: 0.6 | AC51: 1 | AD51: 0.15 | AE51: 0.75 | AF51: 0.1
A52: University/Collage | B52: 0 | C52: 0 | D52: 0 | E52: 1.6 | F52: 0.6 | G52: 0.2 | H52: 0.1 | I52: 0.2 | J52: 0.83 | K52: 0.09 | L52: 0.3 | M52: 0.61 | N52: 0.08 | O52: 0.23 | P52: 0.69 | Q52: 0.33 | R52: 0.22 | S52: 0.45 | T52: 0.39 | U52: 0.28 | V52: 0.33 | W52: 13.8 | X52: 16 | Y52: 19.4 | Z52: 100 | AA52: 1.3 | AB52: 0.6 | AC52: 1 | AD52: 0.15 | AE52: 0.75 | AF52: 0.1
A53: Hospital | B53: 0 | C53: 0 | D53: 0 | E53: 1.6 | F53: 0.6 | G53: 0.2 | H53: 0.1 | I53: 0.2 | J53: 2 | K53: 0.09 | L53: 0.3 | M53: 0.61 | N53: 0.08 | O53: 0.23 | P53: 0.69 | Q53: 0.33 | R53: 0.22 | S53: 0.45 | T53: 0.39 | U53: 0.28 | V53: 0.33 | W53: 13.8 | X53: 16 | Y53: 19.4 | Z53: 100 | AA53: 1.3 | AB53: 0.6 | AC53: 1 | AD53: 0.15 | AE53: 0.75 | AF53: 0.1
A54: Nursing home | B54: 0 | C54: 0 | D54: 0 | E54: 1.6 | F54: 0.6 | G54: 0.2 | H54: 0.1 | I54: 0.2 | J54: 2 | K54: 0.09 | L54: 0.3 | M54: 0.61 | N54: 0.08 | O54: 0.23 | P54: 0.69 | Q54: 0.33 | R54: 0.22 | S54: 0.45 | T54: 0.39 | U54: 0.28 | V54: 0.33 | W54: 13.8 | X54: 16 | Y54: 19.4 | Z54: 100 | AA54: 1.3 | AB54: 0.6 | AC54: 1 | AD54: 0.15 | AE54: 0.75 | AF54: 0.1
A55: Hotel | B55: 0 | C55: 0 | D55: 0 | E55: 1.6 | F55: 0.6 | G55: 0.2 | H55: 0.1 | I55: 0.2 | J55: 2.45 | K55: 0.09 | L55: 0.3 | M55: 0.61 | N55: 0.08 | O55: 0.23 | P55: 0.69 | Q55: 0.33 | R55: 0.22 | S55: 0.45 | T55: 0.39 | U55: 0.28 | V55: 0.33 | W55: 13.8 | X55: 16 | Y55: 19.4 | Z55: 100 | AA55: 1.3 | AB55: 0.6 | AC55: 1 | AD55: 0.15 | AE55: 0.75 | AF55: 0.1
A56: Sports Facility | B56: 0 | C56: 0 | D56: 0 | E56: 1.6 | F56: 0.6 | G56: 0.2 | H56: 0.1 | I56: 0.2 | J56: 0 | K56: 0.09 | L56: 0.3 | M56: 0.61 | N56: 0.08 | O56: 0.23 | P56: 0.69 | Q56: 0.33 | R56: 0.22 | S56: 0.45 | T56: 0.39 | U56: 0.28 | V56: 0.33 | W56: 13.8 | X56: 16 | Y56: 19.4 | Z56: 100 | AA56: 1.3 | AB56: 0.6 | AC56: 1 | AD56: 0.15 | AE56: 0.75 | AF56: 0.1
A57: Comercial building | B57: 0 | C57: 0 | D57: 0 | E57: 1.6 | F57: 0.2 | G57: 0.1 | H57: 0.1 | I57: 1 | J57: 1.65 | K57: 0.11 | L57: 0.5 | M57: 0.39 | N57: 0.08 | O57: 0.23 | P57: 0.69 | Q57: 0.33 | R57: 0.22 | S57: 0.45 | T57: 0.39 | U57: 0.28 | V57: 0.33 | W57: 13.8 | X57: 16 | Y57: 19.4 | Z57: 100 | AA57: 1.3 | AB57: 0.6 | AC57: 1 | AD57: 0.15 | AE57: 0.75 | AF57: 0.1
A58: Cultural building | B58: 0 | C58: 0 | D58: 0 | E58: 1.6 | F58: 0.6 | G58: 0.2 | H58: 0.1 | I58: 0.2 | J58: 1.65 | K58: 0.11 | L58: 0.5 | M58: 0.39 | N58: 0.08 | O58: 0.23 | P58: 0.69 | Q58: 0.33 | R58: 0.22 | S58: 0.45 | T58: 0.39 | U58: 0.28 | V58: 0.33 | W58: 13.8 | X58: 16 | Y58: 19.4 | Z58: 100 | AA58: 1.3 | AB58: 0.6 | AC58: 1 | AD58: 0.15 | AE58: 0.75 | AF58: 0.1
A59: Industry/Workshop | B59: 0 | C59: 0 | D59: 0 | E59: 1.6 | F59: 0.2 | G59: 0.1 | H59: 0.1 | I59: 1 | J59: 0 | K59: 0.09 | L59: 0.3 | M59: 0.61 | N59: 0.08 | O59: 0.23 | P59: 0.69 | Q59: 0.33 | R59: 0.22 | S59: 0.45 | T59: 0.39 | U59: 0.28 | V59: 0.33 | W59: 13.8 | X59: 16 | Y59: 19.4 | Z59: 100 | AA59: 1.3 | AB59: 0.6 | AC59: 1 | AD59: 0.15 | AE59: 0.75 | AF59: 0.1
A61: CO2 emission factors
A62: Means of transport | B62: Fossile [g/km] | C62: NonFossile [g/km] | D62: % NonFossile
A63: Buss | B63: 780 | C63: 230 | D63: 0
A64: Rail | B64: 0 | C64: 3900 | D64: 1
A65: Car | B65: 140 | C65: 45 | D65: 0.081
A66: Truck | B66: 440 | C66: 85 | D66: 0.017

Sheet Transport Input Data (hidden)
A1: Transport Data
A3: BuildingCategory | B3: Trip Generation
B4: Users | G4: Other Users
B5: Work | C5: Service | D5: Private errand | E5: Utside Service | F5: Goods transport
A6: Residential individual housing | B6: 0.8 | C6: 0.1 | D6: 1 | E6: 1.7 | F6: 0.1 | G6: 0
A7: Residential apartment building | B7: 0.8 | C7: 0.1 | D7: 1 | E7: 1.7 | F7: 0.1 | G7: 0
A8: Office building | B8: 1.6 | C8: 0.6 | D8: 0.2 | E8: 0.1 | F8: 0.2 | G8: 1.43
A9: Kindergarten | B9: 1.6 | C9: 0.6 | D9: 0.2 | E9: 0.1 | F9: 0.2 | G9: 0.79
A10: School | B10: 1.6 | C10: 0.6 | D10: 0.2 | E10: 0.1 | F10: 0.2 | G10: 0.83
A11: University/Collage | B11: 1.6 | C11: 0.6 | D11: 0.2 | E11: 0.1 | F11: 0.2 | G11: 0.83
A12: Hospital | B12: 1.6 | C12: 0.6 | D12: 0.2 | E12: 0.1 | F12: 0.2 | G12: 2
A13: Nursing home | B13: 1.6 | C13: 0.6 | D13: 0.2 | E13: 0.1 | F13: 0.2 | G13: 2
A14: Hotel | B14: 1.6 | C14: 0.6 | D14: 0.2 | E14: 0.1 | F14: 0.2 | G14: 2.45
A15: Sports Facility | B15: 1.6 | C15: 0.6 | D15: 0.2 | E15: 0.1 | F15: 0.2 | G15: 0
A16: Comercial building | B16: 1.6 | C16: 0.2 | D16: 0.1 | E16: 0.1 | F16: 1 | G16: 1.65
A17: Cultural building | B17: 1.6 | C17: 0.6 | D17: 0.2 | E17: 0.1 | F17: 0.2 | G17: 1.65
A18: Industry/Workshop | B18: 1.6 | C18: 0.2 | D18: 0.1 | E18: 0.1 | F18: 1 | G18: 0
A20: Traveling Habit data
C21: Travel method distribution | O21: Other Travel Data
C22: Work | F22: Service | I22: Private errand | L22: Other | O22: Traveling speeds at road | Q22: Average distance | S22: # passengers | U22: Public Transport
A23: Oslo | C23: Walk/bike | D23: Public transport | E23: Car | F23: Walk/bike | G23: Public transport | H23: Car | I23: Walk/bike | J23: Public transport | K23: Car | L23: Walk/bike | M23: Public transport | N23: Car | O23: % below 50 km/h | P23: % above 50 km/h | Q23: Public Transport | R23: Car | S23: Public Transport | T23: Car | U23: % using track
B24: Residential individual housing | C24: 0.19 | D24: 0.47 | E24: 0.34 | F24: 0.19 | G24: 0.29 | H24: 0.52 | I24: 0.42 | J24: 0.21 | K24: 0.37 | L24: 0.43 | M24: 0.26 | N24: 0.31 | O24: 0.5 | P24: 0.5 | Q24: 13.8 | R24: 16 | S24: 19.4 | T24: 1.3 | U24: 0.6
B25: Residential apartment building | C25: =C24 -> 0.19 | D25: =D24 -> 0.47 | E25: 0.34 | F25: 0.19 | G25: 0.29 | H25: 0.52 | I25: 0.42 | J25: 0.21 | K25: 0.37 | L25: 0.43 | M25: 0.26 | N25: 0.31 | O25: 0.5 | P25: 0.5 | Q25: 13.8 | R25: 16 | S25: 19.4 | T25: 1.3 | U25: 0.6
B26: Office building | C26: 0.19 | D26: 0.47 | E26: 0.34 | F26: 0.19 | G26: 0.29 | H26: 0.52 | I26: 0.42 | J26: 0.21 | K26: 0.37 | L26: 0.43 | M26: 0.26 | N26: 0.31 | O26: =O25 -> 0.5 | P26: 0.5 | Q26: 13.8 | R26: 16 | S26: 19.4 | T26: 1.3 | U26: 0.6
B27: Kindergarten | C27: =C26 -> 0.19 | D27: =D26 -> 0.47 | E27: 0.34 | F27: 0.19 | G27: 0.29 | H27: 0.52 | I27: 0.42 | J27: 0.21 | K27: 0.37 | L27: 0.43 | M27: 0.26 | N27: 0.31 | O27: 0.5 | P27: 0.5 | Q27: 13.8 | R27: 16 | S27: 19.4 | T27: 1.3 | U27: 0.6
B28: School | C28: =C27 -> 0.19 | D28: =D27 -> 0.47 | E28: =E27 -> 0.34 | F28: =F27 -> 0.19 | G28: =G27 -> 0.29 | H28: =H27 -> 0.52 | I28: =I27 -> 0.42 | J28: =J27 -> 0.21 | K28: =K27 -> 0.37 | L28: =L27 -> 0.43 | M28: =M27 -> 0.26 | N28: =N27 -> 0.31 | O28: 0.5 | P28: 0.5 | Q28: 13.8 | R28: 16 | S28: 19.4 | T28: 1.3 | U28: 0.6
B29: University/Collage | C29: 0.19 | D29: 0.47 | E29: 0.34 | F29: 0.19 | G29: 0.29 | H29: 0.52 | I29: 0.42 | J29: 0.21 | K29: 0.37 | L29: 0.43 | M29: 0.26 | N29: 0.31 | O29: 0.5 | P29: 0.5 | Q29: 13.8 | R29: 16 | S29: 19.4 | T29: 1.3 | U29: 0.6
B30: Hospital | C30: 0.19 | D30: 0.47 | E30: 0.34 | F30: 0.19 | G30: 0.29 | H30: 0.52 | I30: 0.42 | J30: 0.21 | K30: 0.37 | L30: 0.43 | M30: 0.26 | N30: 0.31 | O30: 0.5 | P30: 0.5 | Q30: 13.8 | R30: 16 | S30: 19.4 | T30: 1.3 | U30: 0.6
B31: Nursing home | C31: 0.19 | D31: 0.47 | E31: 0.34 | F31: 0.19 | G31: 0.29 | H31: 0.52 | I31: 0.42 | J31: 0.21 | K31: 0.37 | L31: 0.43 | M31: 0.26 | N31: 0.31 | O31: 0.5 | P31: 0.5 | Q31: 13.8 | R31: 16 | S31: 19.4 | T31: 1.3 | U31: 0.6
B32: Hotel | C32: 0.19 | D32: 0.47 | E32: 0.34 | F32: 0.19 | G32: 0.29 | H32: 0.52 | I32: 0.42 | J32: 0.21 | K32: 0.37 | L32: 0.43 | M32: 0.26 | N32: 0.31 | O32: 0.5 | P32: 0.5 | Q32: 13.8 | R32: 16 | S32: 19.4 | T32: 1.3 | U32: 0.6
B33: Sports Facility | C33: 0.19 | D33: 0.47 | E33: 0.34 | F33: 0.19 | G33: 0.29 | H33: 0.52 | I33: 0.42 | J33: 0.21 | K33: 0.37 | L33: 0.43 | M33: 0.26 | N33: 0.31 | O33: 0.5 | P33: 0.5 | Q33: 13.8 | R33: 16 | S33: 19.4 | T33: 1.3 | U33: 0.6
B34: Comercial building | C34: 0.19 | D34: 0.47 | E34: 0.34 | F34: 0.19 | G34: 0.29 | H34: 0.52 | I34: 0.42 | J34: 0.21 | K34: 0.37 | L34: 0.43 | M34: 0.26 | N34: 0.31 | O34: =O33 -> 0.5 | P34: 0.5 | Q34: 13.8 | R34: 16 | S34: 19.4 | T34: 1.3 | U34: 0.6
B35: Cultural building | C35: =C34 -> 0.19 | D35: =D34 -> 0.47 | E35: 0.34 | F35: 0.19 | G35: 0.29 | H35: 0.52 | I35: 0.42 | J35: 0.21 | K35: 0.37 | L35: 0.43 | M35: 0.26 | N35: 0.31 | O35: 0.5 | P35: 0.5 | Q35: 13.8 | R35: 16 | S35: 19.4 | T35: 1.3 | U35: 0.6
B36: Industry/Workshop | C36: =C33 -> 0.19 | D36: =D33 -> 0.47 | E36: 0.34 | F36: 0.19 | G36: 0.29 | H36: 0.52 | I36: 0.42 | J36: 0.21 | K36: 0.37 | L36: 0.43 | M36: 0.26 | N36: 0.31 | O36: =O35 -> 0.5 | P36: 0.5 | Q36: 13.8 | R36: 16 | S36: 19.4 | T36: 1.3 | U36: 0.6
A38: Oslo, Groruddalen | C38: Walk/bike | D38: Public transport | E38: Car | F38: Walk/bike | G38: Public transport | H38: Car | I38: Walk/bike | J38: Public transport | K38: Car | L38: Walk/bike | M38: Public transport | N38: Car | O38: % below 50 km/h | P38: % above 50 km/h | Q38: Public Transport | R38: Car | S38: Public Transport | T38: Car | U38: % using track
B39: Residential individual housing | C39: 0.11 | D39: 0.5 | E39: 0.39 | F39: 0.08 | G39: 0.23 | H39: 0.69 | I39: 0.33 | J39: 0.22 | K39: 0.45 | L39: 0.39 | M39: 0.28 | N39: 0.33 | O39: 0.5 | P39: 0.5 | Q39: 13.8 | R39: 16 | S39: 19.4 | T39: 1.3 | U39: 0.6
B40: Residential apartment building | C40: =C39 -> 0.11 | D40: =D39 -> 0.5 | E40: =E39 -> 0.39 | F40: =F39 -> 0.08 | G40: =G39 -> 0.23 | H40: =H39 -> 0.69 | I40: =I39 -> 0.33 | J40: =J39 -> 0.22 | K40: =K39 -> 0.45 | L40: =L39 -> 0.39 | M40: =M39 -> 0.28 | N40: =N39 -> 0.33 | O40: 0.5 | P40: 0.5 | Q40: 13.8 | R40: 16 | S40: 19.4 | T40: 1.3 | U40: 0.6
B41: Office building | C41: 0.09 | D41: 0.3 | E41: 0.61 | F41: 0.08 | G41: 0.23 | H41: 0.69 | I41: 0.33 | J41: 0.22 | K41: 0.45 | L41: 0.39 | M41: 0.28 | N41: 0.33 | O41: =O40 -> 0.5 | P41: 0.5 | Q41: 13.8 | R41: 16 | S41: 19.4 | T41: 1.3 | U41: 0.6
B42: Kindergarten | C42: =C41 -> 0.09 | D42: =D41 -> 0.3 | E42: =E41 -> 0.61 | F42: =F41 -> 0.08 | G42: =G41 -> 0.23 | H42: =H41 -> 0.69 | I42: =I41 -> 0.33 | J42: =J41 -> 0.22 | K42: =K41 -> 0.45 | L42: =L41 -> 0.39 | M42: =M41 -> 0.28 | N42: =N41 -> 0.33 | O42: 0.5 | P42: 0.5 | Q42: 13.8 | R42: 16 | S42: 19.4 | T42: 1.3 | U42: 0.6
B43: School | C43: =C42 -> 0.09 | D43: 0.3 | E43: 0.61 | F43: 0.08 | G43: 0.23 | H43: 0.69 | I43: 0.33 | J43: 0.22 | K43: 0.45 | L43: 0.39 | M43: 0.28 | N43: 0.33 | O43: 0.5 | P43: 0.5 | Q43: 13.8 | R43: 16 | S43: 19.4 | T43: 1.3 | U43: 0.6
B44: University/Collage | C44: 0.09 | D44: 0.3 | E44: 0.61 | F44: 0.08 | G44: 0.23 | H44: 0.69 | I44: 0.33 | J44: 0.22 | K44: 0.45 | L44: 0.39 | M44: 0.28 | N44: 0.33 | O44: 0.5 | P44: 0.5 | Q44: 13.8 | R44: 16 | S44: 19.4 | T44: 1.3 | U44: 0.6
B45: Hospital | C45: 0.09 | D45: 0.3 | E45: 0.61 | F45: 0.08 | G45: 0.23 | H45: 0.69 | I45: 0.33 | J45: 0.22 | K45: 0.45 | L45: 0.39 | M45: 0.28 | N45: 0.33 | O45: 0.5 | P45: 0.5 | Q45: 13.8 | R45: 16 | S45: 19.4 | T45: 1.3 | U45: 0.6
B46: Nursing home | C46: 0.09 | D46: 0.3 | E46: 0.61 | F46: 0.08 | G46: 0.23 | H46: 0.69 | I46: 0.33 | J46: 0.22 | K46: 0.45 | L46: 0.39 | M46: 0.28 | N46: 0.33 | O46: 0.5 | P46: 0.5 | Q46: 13.8 | R46: 16 | S46: 19.4 | T46: 1.3 | U46: 0.6
B47: Hotel | C47: 0.09 | D47: 0.3 | E47: 0.61 | F47: 0.08 | G47: 0.23 | H47: 0.69 | I47: 0.33 | J47: 0.22 | K47: 0.45 | L47: 0.39 | M47: 0.28 | N47: 0.33 | O47: 0.5 | P47: 0.5 | Q47: 13.8 | R47: 16 | S47: 19.4 | T47: 1.3 | U47: 0.6
B48: Sports Facility | C48: 0.09 | D48: 0.3 | E48: 0.61 | F48: 0.08 | G48: 0.23 | H48: 0.69 | I48: 0.33 | J48: 0.22 | K48: 0.45 | L48: 0.39 | M48: 0.28 | N48: 0.33 | O48: 0.5 | P48: 0.5 | Q48: 13.8 | R48: 16 | S48: 19.4 | T48: 1.3 | U48: 0.6
B49: Comercial building | C49: =C39 -> 0.11 | D49: =D39 -> 0.5 | E49: 0.39 | F49: 0.08 | G49: 0.23 | H49: 0.69 | I49: 0.33 | J49: 0.22 | K49: 0.45 | L49: 0.39 | M49: 0.28 | N49: 0.33 | O49: =O48 -> 0.5 | P49: 0.5 | Q49: 13.8 | R49: 16 | S49: 19.4 | T49: 1.3 | U49: 0.6
B50: Cultural building | C50: =C49 -> 0.11 | D50: =D49 -> 0.5 | E50: =E49 -> 0.39 | F50: =F49 -> 0.08 | G50: =G49 -> 0.23 | H50: =H49 -> 0.69 | I50: =I49 -> 0.33 | J50: =J49 -> 0.22 | K50: =K49 -> 0.45 | L50: =L49 -> 0.39 | M50: =M49 -> 0.28 | N50: =N49 -> 0.33 | O50: 0.5 | P50: 0.5 | Q50: 13.8 | R50: 16 | S50: 19.4 | T50: 1.3 | U50: 0.6
B51: Industry/Workshop | C51: =C48 -> 0.09 | D51: =D48 -> 0.3 | E51: 0.61 | F51: 0.08 | G51: 0.23 | H51: 0.69 | I51: 0.33 | J51: 0.22 | K51: 0.45 | L51: 0.39 | M51: 0.28 | N51: 0.33 | O51: =O50 -> 0.5 | P51: 0.5 | Q51: 13.8 | R51: 16 | S51: 19.4 | T51: 1.3 | U51: 0.6
A53: Oslo, Groruddalen knutepunkt | C53: Walk/bike | D53: Public transport | E53: Car | F53: Walk/bike | G53: Public transport | H53: Car | I53: Walk/bike | J53: Public transport | K53: Car | L53: Walk/bike | M53: Public transport | N53: Car | O53: % below 50 km/h | P53: % above 50 km/h | Q53: Public Transport | R53: Car | S53: Public Transport | T53: Car | U53: % using track
B54: Residential individual housing | C54: 0.2 | D54: 0.5 | E54: 0.3 | F54: 0.17 | G54: 0.28 | H54: 0.55 | I54: 0.46 | J54: 0.22 | K54: 0.32 | L54: 0.44 | M54: 0.28 | N54: 0.28 | O54: 0.5 | P54: 0.5 | Q54: 13.8 | R54: 16 | S54: 19.4 | T54: 1.3 | U54: 0.6
B55: Residential apartment building | C55: =C54 -> 0.2 | D55: =D54 -> 0.5 | E55: =E54 -> 0.3 | F55: =F54 -> 0.17 | G55: =G54 -> 0.28 | H55: =H54 -> 0.55 | I55: =I54 -> 0.46 | J55: =J54 -> 0.22 | K55: =K54 -> 0.32 | L55: =L54 -> 0.44 | M55: =M54 -> 0.28 | N55: =N54 -> 0.28 | O55: 0.5 | P55: 0.5 | Q55: 13.8 | R55: 16 | S55: 19.4 | T55: 1.3 | U55: 0.6
B56: Office building | C56: 0.15 | D56: 0.37 | E56: 0.48 | F56: 0.17 | G56: 0.28 | H56: 0.55 | I56: 0.46 | J56: 0.22 | K56: 0.32 | L56: 0.43 | M56: 0.25 | N56: 0.32 | O56: =O55 -> 0.5 | P56: 0.5 | Q56: 13.8 | R56: 16 | S56: 19.4 | T56: 1.3 | U56: 0.6
B57: Kindergarten | C57: =C56 -> 0.15 | D57: =D56 -> 0.37 | E57: =E56 -> 0.48 | F57: =F56 -> 0.17 | G57: =G56 -> 0.28 | H57: =H56 -> 0.55 | I57: =I56 -> 0.46 | J57: =J56 -> 0.22 | K57: =K56 -> 0.32 | L57: =L56 -> 0.43 | M57: =M56 -> 0.25 | N57: =N56 -> 0.32 | O57: 0.5 | P57: 0.5 | Q57: 13.8 | R57: 16 | S57: 19.4 | T57: 1.3 | U57: 0.6
B58: School | C58: =C57 -> 0.15 | D58: 0.37 | E58: 0.48 | F58: 0.17 | G58: 0.28 | H58: 0.55 | I58: 0.46 | J58: 0.22 | K58: 0.32 | L58: 0.43 | M58: 0.25 | N58: 0.32 | O58: 0.5 | P58: 0.5 | Q58: 13.8 | R58: 16 | S58: 19.4 | T58: 1.3 | U58: 0.6
B59: University/Collage | C59: 0.15 | D59: 0.37 | E59: 0.48 | F59: 0.17 | G59: 0.28 | H59: 0.55 | I59: 0.46 | J59: 0.22 | K59: 0.32 | L59: 0.43 | M59: 0.25 | N59: 0.32 | O59: 0.5 | P59: 0.5 | Q59: 13.8 | R59: 16 | S59: 19.4 | T59: 1.3 | U59: 0.6
B60: Hospital | C60: 0.15 | D60: 0.37 | E60: 0.48 | F60: 0.17 | G60: 0.28 | H60: 0.55 | I60: 0.46 | J60: 0.22 | K60: 0.32 | L60: 0.43 | M60: 0.25 | N60: 0.32 | O60: 0.5 | P60: 0.5 | Q60: 13.8 | R60: 16 | S60: 19.4 | T60: 1.3 | U60: 0.6
B61: Nursing home | C61: 0.15 | D61: 0.37 | E61: 0.48 | F61: 0.17 | G61: 0.28 | H61: 0.55 | I61: 0.46 | J61: 0.22 | K61: 0.32 | L61: 0.43 | M61: 0.25 | N61: 0.32 | O61: 0.5 | P61: 0.5 | Q61: 13.8 | R61: 16 | S61: 19.4 | T61: 1.3 | U61: 0.6
B62: Hotel | C62: 0.15 | D62: 0.37 | E62: 0.48 | F62: 0.17 | G62: 0.28 | H62: 0.55 | I62: 0.46 | J62: 0.22 | K62: 0.32 | L62: 0.43 | M62: 0.25 | N62: 0.32 | O62: 0.5 | P62: 0.5 | Q62: 13.8 | R62: 16 | S62: 19.4 | T62: 1.3 | U62: 0.6
B63: Sports Facility | C63: 0.15 | D63: 0.37 | E63: 0.48 | F63: 0.17 | G63: 0.28 | H63: 0.55 | I63: 0.46 | J63: 0.22 | K63: 0.32 | L63: 0.43 | M63: 0.25 | N63: 0.32 | O63: 0.5 | P63: 0.5 | Q63: 13.8 | R63: 16 | S63: 19.4 | T63: 1.3 | U63: 0.6
B64: Comercial building | C64: =C54 -> 0.2 | D64: =D54 -> 0.5 | E64: 0.3 | F64: 0.17 | G64: 0.28 | H64: 0.55 | I64: 0.46 | J64: 0.22 | K64: 0.32 | L64: 0.44 | M64: 0.28 | N64: 0.28 | O64: =O63 -> 0.5 | P64: 0.5 | Q64: 13.8 | R64: 16 | S64: 19.4 | T64: 1.3 | U64: 0.6
B65: Cultural building | C65: =C64 -> 0.2 | D65: =D64 -> 0.5 | E65: =E64 -> 0.3 | F65: =F64 -> 0.17 | G65: =G64 -> 0.28 | H65: =H64 -> 0.55 | I65: =I64 -> 0.46 | J65: =J64 -> 0.22 | K65: =K64 -> 0.32 | L65: =L64 -> 0.44 | M65: =M64 -> 0.28 | N65: =N64 -> 0.28 | O65: 0.5 | P65: 0.5 | Q65: 13.8 | R65: 16 | S65: 19.4 | T65: 1.3 | U65: 0.6
B66: Industry/Workshop | C66: =C63 -> 0.15 | D66: =D63 -> 0.37 | E66: 0.48 | F66: 0.17 | G66: 0.28 | H66: 0.55 | I66: 0.46 | J66: 0.22 | K66: 0.32 | L66: 0.43 | M66: 0.25 | N66: 0.32 | O66: =O65 -> 0.5 | P66: 0.5 | Q66: 13.8 | R66: 16 | S66: 19.4 | T66: 1.3 | U66: 0.6
A68: Bergen Kommune | C68: Walk/bike | D68: Public transport | E68: Car | F68: Walk/bike | G68: Public transport | H68: Car | I68: Walk/bike | J68: Public transport | K68: Car | L68: Walk/bike | M68: Public transport | N68: Car | O68: % below 50 km/h | P68: % above 50 km/h | Q68: Public Transport | R68: Car | S68: Public Transport | T68: Car | U68: % using track
B69: Residential individual housing | C69: 0.27 | D69: 0.25 | E69: 0.48 | F69: 0.09 | G69: 0.12 | H69: 0.79 | I69: 0.41 | J69: 0.11 | K69: 0.48 | L69: 0.32 | M69: 0.1 | N69: 0.58 | O69: 0.6 | P69: 0.4 | Q69: 12.3 | R69: 12.9 | S69: 15 | T69: 1.3 | U69: 0.2
B70: Residential apartment building | C70: =C69 -> 0.27 | D70: =D69 -> 0.25 | E70: 0.48 | F70: 0.09 | G70: 0.12 | H70: 0.79 | I70: 0.41 | J70: 0.11 | K70: 0.48 | L70: 0.32 | M70: 0.1 | N70: 0.58 | O70: 0.6 | P70: 0.4 | Q70: 12.3 | R70: 12.9 | S70: 15 | T70: 1.3 | U70: 0.2
B71: Office building | C71: =C70 -> 0.27 | D71: =D70 -> 0.25 | E71: 0.48 | F71: 0.09 | G71: 0.12 | H71: 0.79 | I71: 0.41 | J71: 0.11 | K71: 0.48 | L71: 0.32 | M71: 0.1 | N71: 0.58 | O71: =O70 -> 0.6 | P71: 0.4 | Q71: 12.3 | R71: 12.9 | S71: 15 | T71: 1.3 | U71: 0.2
B72: Kindergarten | C72: =C71 -> 0.27 | D72: =D71 -> 0.25 | E72: 0.48 | F72: 0.09 | G72: 0.12 | H72: 0.79 | I72: 0.41 | J72: 0.11 | K72: 0.48 | L72: 0.32 | M72: 0.1 | N72: 0.58 | O72: 0.6 | P72: 0.4 | Q72: 12.3 | R72: 12.9 | S72: 15 | T72: =T71 -> 1.3 | U72: 0.2
B73: School | C73: =C72 -> 0.27 | D73: 0.25 | E73: 0.48 | F73: 0.09 | G73: 0.12 | H73: 0.79 | I73: 0.41 | J73: 0.11 | K73: 0.48 | L73: 0.32 | M73: 0.1 | N73: 0.58 | O73: 0.6 | P73: 0.4 | Q73: 12.3 | R73: 12.9 | S73: 15 | T73: =T72 -> 1.3 | U73: 0.2
B74: University/Collage | C74: 0.27 | D74: 0.25 | E74: 0.48 | F74: 0.09 | G74: 0.12 | H74: 0.79 | I74: 0.41 | J74: 0.11 | K74: 0.48 | L74: 0.32 | M74: 0.1 | N74: 0.58 | O74: 0.6 | P74: 0.4 | Q74: 12.3 | R74: 12.9 | S74: 15 | T74: =T73 -> 1.3 | U74: 0.2
B75: Hospital | C75: 0.27 | D75: 0.25 | E75: 0.48 | F75: 0.09 | G75: 0.12 | H75: 0.79 | I75: 0.41 | J75: 0.11 | K75: 0.48 | L75: 0.32 | M75: 0.1 | N75: 0.58 | O75: 0.6 | P75: 0.4 | Q75: 12.3 | R75: 12.9 | S75: 15 | T75: =T74 -> 1.3 | U75: 0.2
B76: Nursing home | C76: 0.27 | D76: 0.25 | E76: 0.48 | F76: 0.09 | G76: 0.12 | H76: 0.79 | I76: 0.41 | J76: 0.11 | K76: 0.48 | L76: 0.32 | M76: 0.1 | N76: 0.58 | O76: 0.6 | P76: 0.4 | Q76: 12.3 | R76: 12.9 | S76: 15 | T76: =T75 -> 1.3 | U76: 0.2
B77: Hotel | C77: 0.27 | D77: 0.25 | E77: 0.48 | F77: 0.09 | G77: 0.12 | H77: 0.79 | I77: 0.41 | J77: 0.11 | K77: 0.48 | L77: 0.32 | M77: 0.1 | N77: 0.58 | O77: 0.6 | P77: 0.4 | Q77: 12.3 | R77: 12.9 | S77: 15 | T77: =T76 -> 1.3 | U77: 0.2
B78: Sports Facility | C78: 0.27 | D78: 0.25 | E78: 0.48 | F78: 0.09 | G78: 0.12 | H78: 0.79 | I78: 0.41 | J78: 0.11 | K78: 0.48 | L78: 0.32 | M78: 0.1 | N78: 0.58 | O78: 0.6 | P78: 0.4 | Q78: 12.3 | R78: 12.9 | S78: 15 | T78: =T77 -> 1.3 | U78: 0.2
B79: Comercial building | C79: =C69 -> 0.27 | D79: =D69 -> 0.25 | E79: 0.48 | F79: 0.09 | G79: 0.12 | H79: 0.79 | I79: 0.41 | J79: 0.11 | K79: 0.48 | L79: 0.32 | M79: 0.1 | N79: 0.58 | O79: =O78 -> 0.6 | P79: 0.4 | Q79: 12.3 | R79: 12.9 | S79: 15 | T79: 1.3 | U79: 0.2
B80: Cultural building | C80: =C79 -> 0.27 | D80: =D79 -> 0.25 | E80: 0.48 | F80: 0.09 | G80: 0.12 | H80: 0.79 | I80: 0.41 | J80: 0.11 | K80: 0.48 | L80: 0.32 | M80: 0.1 | N80: 0.58 | O80: 0.6 | P80: 0.4 | Q80: 12.3 | R80: 12.9 | S80: 15 | T80: 1.3 | U80: 0.2
B81: Industry/Workshop | C81: =C78 -> 0.27 | D81: =D78 -> 0.25 | E81: 0.48 | F81: 0.09 | G81: 0.12 | H81: 0.79 | I81: 0.41 | J81: 0.11 | K81: 0.48 | L81: 0.32 | M81: 0.1 | N81: 0.58 | O81: =O80 -> 0.6 | P81: 0.4 | Q81: 12.3 | R81: 12.9 | S81: 15 | T81: 1.3 | U81: 0.2
A83: Bergen Sentrum | C83: Walk/bike | D83: Public transport | E83: Car | F83: Walk/bike | G83: Public transport | H83: Car | I83: Walk/bike | J83: Public transport | K83: Car | L83: Walk/bike | M83: Public transport | N83: Car | O83: % below 50 km/h | P83: % above 50 km/h | Q83: Public Transport | R83: Car | S83: Public Transport | T83: Car | U83: % using track
B84: Residential individual housing | C84: 0.4 | D84: 0.21 | E84: 0.39 | F84: 0.09 | G84: 0.12 | H84: 0.79 | I84: 0.51 | J84: 0.09 | K84: 0.4 | L84: 0.32 | M84: 0.1 | N84: 0.58 | O84: 0.6 | P84: 0.4 | Q84: 12.3 | R84: 12.3 | S84: 15 | T84: 1.3 | U84: 0.2
B85: Residential apartment building | C85: =C84 -> 0.4 | D85: =D84 -> 0.21 | E85: 0.39 | F85: 0.09 | G85: 0.12 | H85: 0.79 | I85: 0.51 | J85: 0.09 | K85: 0.4 | L85: 0.32 | M85: 0.1 | N85: 0.58 | O85: 0.6 | P85: 0.4 | Q85: 12.3 | R85: 12.3 | S85: 15 | T85: 1.3 | U85: 0.2
B86: Office building | C86: 0.28 | D86: 0.28 | E86: 0.79 | F86: 0.09 | G86: 0.12 | H86: 0.79 | I86: 0.51 | J86: 0.09 | K86: 0.4 | L86: 0.32 | M86: 0.1 | N86: 0.58 | O86: =O85 -> 0.6 | P86: 0.4 | Q86: 12.3 | R86: 12.3 | S86: 15 | T86: 1.3 | U86: 0.2
B87: Kindergarten | C87: =C86 -> 0.28 | D87: =D86 -> 0.28 | E87: 0.79 | F87: 0.09 | G87: 0.12 | H87: 0.79 | I87: 0.51 | J87: 0.09 | K87: 0.4 | L87: 0.32 | M87: 0.1 | N87: 0.58 | O87: 0.6 | P87: 0.4 | Q87: 12.3 | R87: 12.3 | S87: 15 | T87: 1.3 | U87: 0.2
B88: School | C88: =C87 -> 0.28 | D88: 0.28 | E88: 0.79 | F88: 0.09 | G88: 0.12 | H88: 0.79 | I88: 0.51 | J88: 0.09 | K88: 0.4 | L88: 0.32 | M88: 0.1 | N88: 0.58 | O88: 0.6 | P88: 0.4 | Q88: 12.3 | R88: 12.3 | S88: 15 | T88: 1.3 | U88: 0.2
B89: University/Collage | C89: 0.28 | D89: 0.28 | E89: 0.79 | F89: 0.09 | G89: 0.12 | H89: 0.79 | I89: 0.51 | J89: 0.09 | K89: 0.4 | L89: 0.32 | M89: 0.1 | N89: 0.58 | O89: 0.6 | P89: 0.4 | Q89: 12.3 | R89: 12.3 | S89: 15 | T89: 1.3 | U89: 0.2
B90: Hospital | C90: 0.28 | D90: 0.28 | E90: 0.79 | F90: 0.09 | G90: 0.12 | H90: 0.79 | I90: 0.51 | J90: 0.09 | K90: 0.4 | L90: 0.32 | M90: 0.1 | N90: 0.58 | O90: 0.6 | P90: 0.4 | Q90: 12.3 | R90: 12.3 | S90: 15 | T90: 1.3 | U90: 0.2
B91: Nursing home | C91: 0.28 | D91: 0.28 | E91: 0.79 | F91: 0.09 | G91: 0.12 | H91: 0.79 | I91: 0.51 | J91: 0.09 | K91: 0.4 | L91: 0.32 | M91: 0.1 | N91: 0.58 | O91: 0.6 | P91: 0.4 | Q91: 12.3 | R91: 12.3 | S91: 15 | T91: 1.3 | U91: 0.2
B92: Hotel | C92: 0.28 | D92: 0.28 | E92: 0.79 | F92: 0.09 | G92: 0.12 | H92: 0.79 | I92: 0.51 | J92: 0.09 | K92: 0.4 | L92: 0.32 | M92: 0.1 | N92: 0.58 | O92: 0.6 | P92: 0.4 | Q92: 12.3 | R92: 12.3 | S92: 15 | T92: 1.3 | U92: 0.2
B93: Sports Facility | C93: 0.28 | D93: 0.28 | E93: 0.79 | F93: 0.09 | G93: 0.12 | H93: 0.79 | I93: 0.51 | J93: 0.09 | K93: 0.4 | L93: 0.32 | M93: 0.1 | N93: 0.58 | O93: 0.6 | P93: 0.4 | Q93: 12.3 | R93: 12.3 | S93: 15 | T93: 1.3 | U93: 0.2
B94: Comercial building | C94: =C84 -> 0.4 | D94: =D84 -> 0.21 | E94: 0.39 | F94: 0.09 | G94: 0.12 | H94: 0.79 | I94: 0.51 | J94: 0.09 | K94: 0.4 | L94: 0.32 | M94: 0.1 | N94: 0.58 | O94: =O93 -> 0.6 | P94: 0.4 | Q94: 12.3 | R94: 12.3 | S94: 15 | T94: 1.3 | U94: 0.2
B95: Cultural building | C95: =C94 -> 0.4 | D95: =D94 -> 0.21 | E95: 0.39 | F95: 0.09 | G95: 0.12 | H95: 0.79 | I95: 0.51 | J95: 0.09 | K95: 0.4 | L95: 0.32 | M95: 0.1 | N95: 0.58 | O95: 0.6 | P95: 0.4 | Q95: 12.3 | R95: 12.3 | S95: 15 | T95: 1.3 | U95: 0.2
B96: Industry/Workshop | C96: =C93 -> 0.28 | D96: =D93 -> 0.28 | E96: 0.79 | F96: 0.09 | G96: 0.12 | H96: 0.79 | I96: 0.51 | J96: 0.09 | K96: 0.4 | L96: 0.32 | M96: 0.1 | N96: 0.58 | O96: =O95 -> 0.6 | P96: 0.4 | Q96: 12.3 | R96: 12.3 | S96: 15 | T96: 1.3 | U96: 0.2
A98: Bergen Kommune, utenfor sentrum | C98: Walk/bike | D98: Public transport | E98: Car | F98: Walk/bike | G98: Public transport | H98: Car | I98: Walk/bike | J98: Public transport | K98: Car | L98: Walk/bike | M98: Public transport | N98: Car | O98: % below 50 km/h | P98: % above 50 km/h | Q98: Public Transport | R98: Car | S98: Public Transport | T98: Car | U98: % using track
B99: Residential individual housing | C99: 0.12 | D99: 0.16 | E99: 0.72 | F99: 0.09 | G99: 0.12 | H99: 0.79 | I99: 0.17 | J99: 0.07 | K99: 0.76 | L99: 0.32 | M99: 0.1 | N99: 0.58 | O99: 0.6 | P99: 0.4 | Q99: 12.3 | R99: 12.3 | S99: 15 | T99: 1.3 | U99: 0.2
B100: Residential apartment building | C100: =C99 -> 0.12 | D100: =D99 -> 0.16 | E100: 0.72 | F100: 0.09 | G100: 0.12 | H100: 0.79 | I100: 0.17 | J100: 0.07 | K100: 0.76 | L100: 0.32 | M100: 0.1 | N100: 0.58 | O100: 0.6 | P100: 0.4 | Q100: 12.3 | R100: 12.3 | S100: 15 | T100: 1.3 | U100: 0.2
B101: Office building | C101: =C100 -> 0.12 | D101: =D100 -> 0.16 | E101: 0.72 | F101: 0.09 | G101: 0.12 | H101: 0.79 | I101: 0.17 | J101: 0.07 | K101: 0.76 | L101: 0.32 | M101: 0.1 | N101: 0.58 | O101: =O100 -> 0.6 | P101: 0.4 | Q101: 12.3 | R101: 12.3 | S101: 15 | T101: 1.3 | U101: 0.2
B102: Kindergarten | C102: =C101 -> 0.12 | D102: =D101 -> 0.16 | E102: 0.72 | F102: 0.09 | G102: 0.12 | H102: 0.79 | I102: 0.17 | J102: 0.07 | K102: 0.76 | L102: 0.32 | M102: 0.1 | N102: 0.58 | O102: 0.6 | P102: 0.4 | Q102: 12.3 | R102: 12.3 | S102: 15 | T102: 1.3 | U102: 0.2
B103: School | C103: =C102 -> 0.12 | D103: 0.16 | E103: 0.72 | F103: 0.09 | G103: 0.12 | H103: 0.79 | I103: 0.17 | J103: 0.07 | K103: 0.76 | L103: 0.32 | M103: 0.1 | N103: 0.58 | O103: 0.6 | P103: 0.4 | Q103: 12.3 | R103: 12.3 | S103: 15 | T103: 1.3 | U103: 0.2
B104: University/Collage | C104: 0.12 | D104: 0.16 | E104: 0.72 | F104: 0.09 | G104: 0.12 | H104: 0.79 | I104: 0.17 | J104: 0.07 | K104: 0.76 | L104: 0.32 | M104: 0.1 | N104: 0.58 | O104: 0.6 | P104: 0.4 | Q104: 12.3 | R104: 12.3 | S104: 15 | T104: 1.3 | U104: 0.2
B105: Hospital | C105: 0.12 | D105: 0.16 | E105: 0.72 | F105: 0.09 | G105: 0.12 | H105: 0.79 | I105: 0.17 | J105: 0.07 | K105: 0.76 | L105: 0.32 | M105: 0.1 | N105: 0.58 | O105: 0.6 | P105: 0.4 | Q105: 12.3 | R105: 12.3 | S105: 15 | T105: 1.3 | U105: 0.2
B106: Nursing home | C106: 0.12 | D106: 0.16 | E106: 0.72 | F106: 0.09 | G106: 0.12 | H106: 0.79 | I106: 0.17 | J106: 0.07 | K106: 0.76 | L106: 0.32 | M106: 0.1 | N106: 0.58 | O106: 0.6 | P106: 0.4 | Q106: 12.3 | R106: 12.3 | S106: 15 | T106: 1.3 | U106: 0.2
B107: Hotel | C107: 0.12 | D107: 0.16 | E107: 0.72 | F107: 0.09 | G107: 0.12 | H107: 0.79 | I107: 0.17 | J107: 0.07 | K107: 0.76 | L107: 0.32 | M107: 0.1 | N107: 0.58 | O107: 0.6 | P107: 0.4 | Q107: 12.3 | R107: 12.3 | S107: 15 | T107: 1.3 | U107: 0.2
B108: Sports Facility | C108: 0.12 | D108: 0.16 | E108: 0.72 | F108: 0.09 | G108: 0.12 | H108: 0.79 | I108: 0.17 | J108: 0.07 | K108: 0.76 | L108: 0.32 | M108: 0.1 | N108: 0.58 | O108: 0.6 | P108: 0.4 | Q108: 12.3 | R108: 12.3 | S108: 15 | T108: 1.3 | U108: 0.2
B109: Comercial building | C109: =C99 -> 0.12 | D109: =D99 -> 0.16 | E109: 0.72 | F109: 0.09 | G109: 0.12 | H109: 0.79 | I109: 0.17 | J109: 0.07 | K109: 0.76 | L109: 0.32 | M109: 0.1 | N109: 0.58 | O109: =O108 -> 0.6 | P109: 0.4 | Q109: 12.3 | R109: 12.3 | S109: 15 | T109: 1.3 | U109: 0.2
B110: Cultural building | C110: =C109 -> 0.12 | D110: =D109 -> 0.16 | E110: 0.72 | F110: 0.09 | G110: 0.12 | H110: 0.79 | I110: 0.17 | J110: 0.07 | K110: 0.76 | L110: 0.32 | M110: 0.1 | N110: 0.58 | O110: 0.6 | P110: 0.4 | Q110: 12.3 | R110: 12.3 | S110: 15 | T110: 1.3 | U110: 0.2
B111: Industry/Workshop | C111: =C108 -> 0.12 | D111: =D108 -> 0.16 | E111: 0.72 | F111: 0.09 | G111: 0.12 | H111: 0.79 | I111: 0.17 | J111: 0.07 | K111: 0.76 | L111: 0.32 | M111: 0.1 | N111: 0.58 | O111: =O110 -> 0.6 | P111: 0.4 | Q111: 12.3 | R111: 12.3 | S111: 15 | T111: 1.3 | U111: 0.2

Sheet Test (hidden)
B1: Work | C1: Service | D1: Private errand | E1: Utside Service | F1: Goods transport | G1: Other | I1: Walk/bike | J1: Work | K1: Service | L1: Private errand | M1: Utside Service | N1: Goods transport | O1: Other | Q1: Walk/bike | R1: Work | S1: Service | T1: Private errand | U1: Utside Service | V1: Goods transport | W1: Other | Y1: Walk/bike | Z1: Work | AA1: Service | AB1: Private errand | AC1: Utside Service | AD1: Goods transport | AE1: Other | AG1: Walk/bike | AH1: Work | AI1: Service | AJ1: Private errand | AK1: Utside Service | AL1: Goods transport | AM1: Other | AO1: Walk/bike | AP1: Work | AQ1: Service | AR1: Private errand | AS1: Utside Service | AT1: Goods transport | AU1: Other
A2: Residential individual housing | B2: 0 | C2: 0 | D2: 0 | E2: 0 | F2: 0 | G2: 0 | J2: 0 | K2: 0 | L2: 0 | M2: 0 | N2: 0 | O2: 0 | Z2: 0 | AA2: 0 | AB2: 0 | AC2: 0 | AD2: 0 | AE2: 0 | AH2: 0 | AI2: 0 | AJ2: 0 | AK2: 0 | AL2: 0 | AM2: 0 | AP2: 0 | AQ2: 0 | AR2: 0 | AS2: 0 | AT2: 0 | AU2: 0 | AX2: 16286580.53
A3: Residential apartment building | B3: 3039.2 | C3: 379.9 | D3: 3799 | E3: 6458.3 | F3: 379.9 | G3: 0 | J3: 334.312 | K3: 30.392 | L3: 1253.67 | M3: 516.664 | N3: 0 | O3: 0 | Z3: 1056.16 | AA3: 112.217 | AB3: 3036.46 | AC3: 1907.689 | AD3: 0 | AE3: 0 | AH3: 0 | AI3: 0 | AJ3: 0 | AK3: 0 | AL3: 0 | AM3: 0 | AP3: 0 | AQ3: 0 | AR3: 0 | AS3: 0 | AT3: 0 | AU3: 0 | AX3: 0
A4: Office building | B4: 0 | C4: 0 | D4: 0 | E4: 0 | F4: 0 | G4: 0 | J4: 0 | K4: 0 | L4: 0 | M4: 0 | N4: 0 | O4: 0 | Z4: 262.56 | AA4: 111.588 | AB4: 100.648 | AC4: 18.598 | AD4: 0 | AE4: 672.7006 | AH4: 0 | AI4: 0 | AJ4: 0 | AK4: 0 | AL4: 0 | AM4: 0 | AP4: 0 | AQ4: 0 | AR4: 0 | AS4: 0 | AT4: 0 | AU4: 0 | AX4: 7565350.865
A5: Kindergarten | B5: 0 | C5: 0 | D5: 0 | E5: 0 | F5: 0 | G5: 0 | J5: 0 | K5: 0 | L5: 0 | M5: 0 | N5: 0 | O5: 0 | Z5: 23.04 | AA5: 9.792 | AB5: 8.832 | AC5: 1.632 | AD5: 0 | AE5: 207.8964 | AH5: 0 | AI5: 0 | AJ5: 0 | AK5: 0 | AL5: 0 | AM5: 0 | AP5: 0 | AQ5: 0 | AR5: 0 | AS5: 0 | AT5: 0 | AU5: 0 | AX5: 2608157.311
A6: School | B6: 0 | C6: 0 | D6: 0 | E6: 0 | F6: 0 | G6: 0 | J6: 0 | K6: 0 | L6: 0 | M6: 0 | N6: 0 | O6: 0 | Z6: 28.8 | AA6: 12.24 | AB6: 11.04 | AC6: 2.04 | AD6: 0 | AE6: 314.072 | AH6: 0 | AI6: 0 | AJ6: 0 | AK6: 0 | AL6: 0 | AM6: 0 | AP6: 0 | AQ6: 0 | AR6: 0 | AS6: 0 | AT6: 0 | AU6: 0 | AX6: 0
A7: University/Collage | B7: 0 | C7: 0 | D7: 0 | E7: 0 | F7: 0 | G7: 0 | J7: 0 | K7: 0 | L7: 0 | M7: 0 | N7: 0 | O7: 0 | Z7: 0 | AA7: 0 | AB7: 0 | AC7: 0 | AD7: 0 | AE7: 0 | AH7: 0 | AI7: 0 | AJ7: 0 | AK7: 0 | AL7: 0 | AM7: 0 | AP7: 0 | AQ7: 0 | AR7: 0 | AS7: 0 | AT7: 0 | AU7: 0 | AX7: 0
A8: Hospital | B8: 0 | C8: 0 | D8: 0 | E8: 0 | F8: 0 | G8: 0 | J8: 0 | K8: 0 | L8: 0 | M8: 0 | N8: 0 | O8: 0 | Z8: 39.12 | AA8: 16.626 | AB8: 14.996 | AC8: 2.771 | AD8: 0 | AE8: 123.84 | AH8: 0 | AI8: 0 | AJ8: 0 | AK8: 0 | AL8: 0 | AM8: 0 | AP8: 0 | AQ8: 0 | AR8: 0 | AS8: 0 | AT8: 0 | AU8: 0
A9: Nursing home | B9: 0 | C9: 0 | D9: 0 | E9: 0 | F9: 0 | G9: 0 | J9: 0 | K9: 0 | L9: 0 | M9: 0 | N9: 0 | O9: 0 | Z9: 0 | AA9: 0 | AB9: 0 | AC9: 0 | AD9: 0 | AE9: 0 | AH9: 0 | AI9: 0 | AJ9: 0 | AK9: 0 | AL9: 0 | AM9: 0 | AP9: 0 | AQ9: 0 | AR9: 0 | AS9: 0 | AT9: 0 | AU9: 0
A10: Hotel | B10: 0 | C10: 0 | D10: 0 | E10: 0 | F10: 0 | G10: 0 | J10: 0 | K10: 0 | L10: 0 | M10: 0 | N10: 0 | O10: 0 | Z10: 0 | AA10: 0 | AB10: 0 | AC10: 0 | AD10: 0 | AE10: 0 | AH10: 0 | AI10: 0 | AJ10: 0 | AK10: 0 | AL10: 0 | AM10: 0 | AP10: 0 | AQ10: 0 | AR10: 0 | AS10: 0 | AT10: 0 | AU10: 0
A11: Sports Facility | B11: 0 | C11: 0 | D11: 0 | E11: 0 | F11: 0 | G11: 0 | J11: 0 | K11: 0 | L11: 0 | M11: 0 | N11: 0 | O11: 0 | Z11: 3.12 | AA11: 1.326 | AB11: 1.196 | AC11: 0.221 | AD11: 0 | AE11: 0 | AH11: 0 | AI11: 0 | AJ11: 0 | AK11: 0 | AL11: 0 | AM11: 0 | AP11: 0 | AQ11: 0 | AR11: 0 | AS11: 0 | AT11: 0 | AU11: 0
A12: Comercial building | B12: 96 | C12: 12 | D12: 6 | E12: 6 | F12: 60 | G12: 330 | J12: 10.56 | K12: 0.96 | L12: 1.98 | M12: 0.48 | N12: 0 | O12: 128.7 | Z12: 256 | AA12: 27.2 | AB12: 36.8 | AC12: 13.6 | AD12: 0 | AE12: 9982.5 | AH12: 0 | AI12: 0 | AJ12: 0 | AK12: 0 | AL12: 0 | AM12: 0 | AP12: 0 | AQ12: 0 | AR12: 0 | AS12: 0 | AT12: 0 | AU12: 0
A13: Cultural building | B13: 8 | C13: 3 | D13: 1 | E13: 0.5 | F13: 1 | G13: 165 | J13: 0.88 | K13: 0.24 | L13: 0.33 | M13: 0.04 | N13: 0 | O13: 64.35 | Z13: 16 | AA13: 5.1 | AB13: 4.6 | AC13: 0.85 | AD13: 0 | AE13: 3005.64 | AH13: 0 | AI13: 0 | AJ13: 0 | AK13: 0 | AL13: 0 | AM13: 0 | AP13: 0 | AQ13: 0 | AR13: 0 | AS13: 0 | AT13: 0 | AU13: 0
A14: Industry/Workshop | B14: 0 | C14: 0 | D14: 0 | E14: 0 | F14: 0 | G14: 0 | J14: 0 | K14: 0 | L14: 0 | M14: 0 | N14: 0 | O14: 0 | Z14: 0 | AA14: 0 | AB14: 0 | AC14: 0 | AD14: 0 | AE14: 0 | AH14: 0 | AI14: 0 | AJ14: 0 | AK14: 0 | AL14: 0 | AM14: 0 | AP14: 0 | AQ14: 0 | AR14: 0 | AS14: 0 | AT14: 0 | AU14: 0
I16: Public | J16: 0 | K16: 0 | L16: 0 | M16: 0 | N16: 0 | O16: 0 | Q16: Public | Y16: Public | Z16: 0 | AA16: 0 | AB16: 0 | AC16: 0 | AD16: 0 | AE16: 0 | AG16: Bus | AH16: 0 | AI16: 0 | AJ16: 0 | AK16: 0 | AL16: 0 | AM16: 0 | AO16: Bus | AP16: 0 | AQ16: 0 | AR16: 0 | AS16: 0 | AT16: 0 | AU16: 0
J17: 1519.6 | K17: 87.377 | L17: 835.78 | M17: 1485.409 | N17: 0 | O17: 0 | Z17: 2640.4 | AA17: 184.828 | AB17: 1452.22 | AC17: 3142.076 | AD17: 0 | AE17: 0 | AH17: 3400.503497 | AI17: 195.528951 | AJ17: 1870.276923 | AK17: 3323.992168 | AL17: 0 | AM17: 0 | AP17: 2677896.503 | AQ17: 153979.049 | AR17: 1472843.077 | AS17: 2617643.832 | AT17: 0 | AU17: 0
J18: 0 | K18: 0 | L18: 0 | M18: 0 | N18: 0 | O18: 0 | Z18: 647.648 | AA18: 183.792 | AB18: 48.136 | AC18: 30.632 | AD18: 0 | AE18: 391.105 | AH18: 0 | AI18: 0 | AJ18: 0 | AK18: 0 | AL18: 0 | AM18: 0 | AP18: 0 | AQ18: 0 | AR18: 0 | AS18: 0 | AT18: 0 | AU18: 0
J19: 0 | K19: 0 | L19: 0 | M19: 0 | N19: 0 | O19: 0 | Z19: 56.832 | AA19: 16.128 | AB19: 4.224 | AC19: 2.688 | AD19: 0 | AE19: 120.87 | AH19: 0 | AI19: 0 | AJ19: 0 | AK19: 0 | AL19: 0 | AM19: 0 | AP19: 0 | AQ19: 0 | AR19: 0 | AS19: 0 | AT19: 0 | AU19: 0
J20: 0 | K20: 0 | L20: 0 | M20: 0 | N20: 0 | O20: 0 | Z20: 71.04 | AA20: 20.16 | AB20: 5.28 | AC20: 3.36 | AD20: 0 | AE20: 182.6 | AH20: 0 | AI20: 0 | AJ20: 0 | AK20: 0 | AL20: 0 | AM20: 0 | AP20: 0 | AQ20: 0 | AR20: 0 | AS20: 0 | AT20: 0 | AU20: 0
J21: 0 | K21: 0 | L21: 0 | M21: 0 | N21: 0 | O21: 0 | Z21: 0 | AA21: 0 | AB21: 0 | AC21: 0 | AD21: 0 | AE21: 0 | AH21: 0 | AI21: 0 | AJ21: 0 | AK21: 0 | AL21: 0 | AM21: 0 | AP21: 0 | AQ21: 0 | AR21: 0 | AS21: 0 | AT21: 0 | AU21: 0
J22: 0 | K22: 0 | L22: 0 | M22: 0 | N22: 0 | O22: 0 | Z22: 96.496 | AA22: 27.384 | AB22: 7.172 | AC22: 4.564 | AD22: 0 | AE22: 72 | AH22: 0 | AI22: 0 | AJ22: 0 | AK22: 0 | AL22: 0 | AM22: 0 | AP22: 0 | AQ22: 0 | AR22: 0 | AS22: 0 | AT22: 0 | AU22: 0
J23: 0 | K23: 0 | L23: 0 | M23: 0 | N23: 0 | O23: 0 | Z23: 0 | AA23: 0 | AB23: 0 | AC23: 0 | AD23: 0 | AE23: 0 | AH23: 0 | AI23: 0 | AJ23: 0 | AK23: 0 | AL23: 0 | AM23: 0 | AP23: 0 | AQ23: 0 | AR23: 0 | AS23: 0 | AT23: 0 | AU23: 0
J24: 0 | K24: 0 | L24: 0 | M24: 0 | N24: 0 | O24: 0 | Z24: 0 | AA24: 0 | AB24: 0 | AC24: 0 | AD24: 0 | AE24: 0 | AH24: 0 | AI24: 0 | AJ24: 0 | AK24: 0 | AL24: 0 | AM24: 0 | AP24: 0 | AQ24: 0 | AR24: 0 | AS24: 0 | AT24: 0 | AU24: 0
J25: 0 | K25: 0 | L25: 0 | M25: 0 | N25: 0 | O25: 0 | Z25: 7.696 | AA25: 2.184 | AB25: 0.572 | AC25: 0.364 | AD25: 0 | AE25: 0 | AH25: 0 | AI25: 0 | AJ25: 0 | AK25: 0 | AL25: 0 | AM25: 0 | AP25: 0 | AQ25: 0 | AR25: 0 | AS25: 0 | AT25: 0 | AU25: 0
J26: 48 | K26: 2.76 | L26: 1.32 | M26: 1.38 | N26: 0 | O26: 92.4 | Z26: 640 | AA26: 44.8 | AB26: 17.6 | AC26: 22.4 | AD26: 0 | AE26: 6352.5 | AH26: 132.5471329 | AI26: 6.176223776 | AJ26: 2.953846154 | AK26: 3.088111888 | AL26: 0 | AM26: 279.8769231 | AP26: 104380.8671 | AQ26: 4863.776224 | AR26: 2326.153846 | AS26: 2431.888112 | AT26: 0 | AU26: 220403.0769
J27: 4 | K27: 0.69 | L27: 0.22 | M27: 0.115 | N27: 0 | O27: 46.2 | Z27: 40 | AA27: 8.4 | AB27: 2.2 | AC27: 1.4 | AD27: 0 | AE27: 1912.68 | AH27: 8.951048951 | AI27: 1.544055944 | AJ27: 0.4923076923 | AK27: 0.2573426573 | AL27: 0 | AM27: 103.3846154 | AP27: 7048.951049 | AQ27: 1215.944056 | AR27: 387.6923077 | AS27: 202.6573427 | AT27: 0 | AU27: 81415.38462
J28: 0 | K28: 0 | L28: 0 | M28: 0 | N28: 0 | O28: 0 | Z28: 0 | AA28: 0 | AB28: 0 | AC28: 0 | AD28: 0 | AE28: 0 | AH28: 0 | AI28: 0 | AJ28: 0 | AK28: 0 | AL28: 0 | AM28: 0 | AP28: 0 | AQ28: 0 | AR28: 0 | AS28: 0 | AT28: 0 | AU28: 0
I30: Car | J30: 0 | K30: 0 | L30: 0 | M30: 0 | N30: 0 | O30: 0 | Q30: Car | Y30: Car | Z30: 0 | AA30: 0 | AB30: 0 | AC30: 0 | AD30: 0 | AE30: 0 | AG30: Rail | AH30: 0 | AI30: 0 | AJ30: 0 | AK30: 0 | AL30: 0 | AM30: 0 | AO30: Rail | AP30: 0 | AQ30: 0 | AR30: 0 | AS30: 0 | AT30: 0 | AU30: 0
J31: 1185.288 | K31: 262.131 | L31: 1709.55 | M31: 4456.227 | N31: 379.9 | O31: 0 | Z31: 1584.24 | AA31: 363.055 | AB31: 2112.32 | AC31: 6171.935 | AD31: 660.1 | AE31: 0 | AH31: 6630.981818 | AI31: 381.2814545 | AJ31: 3647.04 | AK31: 6481.784727 | AL31: 0 | AM31: 0 | AP31: 79571.78182 | AQ31: 4575.377455 | AR31: 43764.48 | AS31: 77781.41673 | AT31: 0 | AU31: 0
J32: 0 | K32: 0 | L32: 0 | M32: 0 | N32: 0 | O32: 0 | R32: 0 | W32: 0 | Z32: 840.192 | AA32: 361.02 | AB32: 70.016 | AC32: 60.17 | AD32: 218.8 | AE32: 500.6144 | AH32: 0 | AI32: 0 | AJ32: 0 | AK32: 0 | AL32: 0 | AM32: 0 | AP32: 0 | AQ32: 0 | AR32: 0 | AS32: 0 | AT32: 0 | AU32: 0
J33: 0 | K33: 0 | L33: 0 | M33: 0 | N33: 0 | O33: 0 | R33: 0 | W33: 0 | Z33: 73.728 | AA33: 31.68 | AB33: 6.144 | AC33: 5.28 | AD33: 19.2 | AE33: 154.7136 | AH33: 0 | AI33: 0 | AJ33: 0 | AK33: 0 | AL33: 0 | AM33: 0 | AP33: 0 | AQ33: 0 | AR33: 0 | AS33: 0 | AT33: 0 | AU33: 0
J34: 0 | K34: 0 | L34: 0 | M34: 0 | N34: 0 | O34: 0 | R34: 0 | W34: 0 | Z34: 92.16 | AA34: 39.6 | AB34: 7.68 | AC34: 6.6 | AD34: 24 | AE34: 233.728 | AH34: 0 | AI34: 0 | AJ34: 0 | AK34: 0 | AL34: 0 | AM34: 0 | AP34: 0 | AQ34: 0 | AR34: 0 | AS34: 0 | AT34: 0 | AU34: 0
J35: 0 | K35: 0 | L35: 0 | M35: 0 | N35: 0 | O35: 0 | R35: 0 | W35: 0 | Z35: 0 | AA35: 0 | AB35: 0 | AC35: 0 | AD35: 0 | AE35: 0 | AH35: 0 | AI35: 0 | AJ35: 0 | AK35: 0 | AL35: 0 | AM35: 0 | AP35: 0 | AQ35: 0 | AR35: 0 | AS35: 0 | AT35: 0 | AU35: 0
J36: 0 | K36: 0 | L36: 0 | M36: 0 | N36: 0 | O36: 0 | R36: 0 | W36: 0 | Z36: 125.184 | AA36: 53.79 | AB36: 10.432 | AC36: 8.965 | AD36: 32.6 | AE36: 92.16 | AH36: 0 | AI36: 0 | AJ36: 0 | AK36: 0 | AL36: 0 | AM36: 0 | AP36: 0 | AQ36: 0 | AR36: 0 | AS36: 0 | AT36: 0 | AU36: 0
J37: 0 | K37: 0 | L37: 0 | M37: 0 | N37: 0 | O37: 0 | R37: 0 | W37: 0 | Z37: 0 | AA37: 0 | AB37: 0 | AC37: 0 | AD37: 0 | AE37: 0 | AH37: 0 | AI37: 0 | AJ37: 0 | AK37: 0 | AL37: 0 | AM37: 0 | AP37: 0 | AQ37: 0 | AR37: 0 | AS37: 0 | AT37: 0 | AU37: 0
J38: 0 | K38: 0 | L38: 0 | M38: 0 | N38: 0 | O38: 0 | R38: 0 | W38: 0 | Z38: 0 | AA38: 0 | AB38: 0 | AC38: 0 | AD38: 0 | AE38: 0 | AH38: 0 | AI38: 0 | AJ38: 0 | AK38: 0 | AL38: 0 | AM38: 0 | AP38: 0 | AQ38: 0 | AR38: 0 | AS38: 0 | AT38: 0 | AU38: 0
J39: 0 | K39: 0 | L39: 0 | M39: 0 | N39: 0 | O39: 0 | R39: 0 | W39: 0 | Z39: 9.984 | AA39: 4.29 | AB39: 0.832 | AC39: 0.715 | AD39: 2.6 | AE39: 0 | AH39: 0 | AI39: 0 | AJ39: 0 | AK39: 0 | AL39: 0 | AM39: 0 | AP39: 0 | AQ39: 0 | AR39: 0 | AS39: 0 | AT39: 0 | AU39: 0
J40: 37.44 | K40: 8.28 | L40: 2.7 | M40: 4.14 | N40: 60 | O40: 108.9 | R40: 22.464 | W40: 65.34 | Z40: 384 | AA40: 88 | AB40: 25.6 | AC40: 44 | AD40: 800 | AE40: 6352.5 | AH40: 258.4669091 | AI40: 12.04363636 | AJ40: 5.76 | AK40: 6.021818182 | AL40: 0 | AM40: 545.76 | AP40: 3101.602909 | AQ40: 144.5236364 | AR40: 69.12 | AS40: 72.26181818 | AT40: 0 | AU40: 6549.12
J41: 3.12 | K41: 2.07 | L41: 0.45 | M41: 0.345 | N41: 1 | O41: 54.45 | R41: 3.12 | W41: 54.45 | Z41: 24 | AA41: 16.5 | AB41: 3.2 | AC41: 2.75 | AD41: 10 | AE41: 1912.68 | AH41: 17.45454545 | AI41: 3.010909091 | AJ41: 0.96 | AK41: 0.5018181818 | AL41: 0 | AM41: 201.6 | AP41: 209.4545455 | AQ41: 36.13090909 | AR41: 11.52 | AS41: 6.021818182 | AT41: 0 | AU41: 2419.2
J42: 0 | K42: 0 | L42: 0 | M42: 0 | N42: 0 | O42: 0 | R42: 0 | W42: 0 | Z42: 0 | AA42: 0 | AB42: 0 | AC42: 0 | AD42: 0 | AE42: 0 | AH42: 0 | AI42: 0 | AJ42: 0 | AK42: 0 | AL42: 0 | AM42: 0 | AP42: 0 | AQ42: 0 | AR42: 0 | AS42: 0 | AT42: 0 | AU42: 0
AH44: 0 | AI44: 0 | AJ44: 0 | AK44: 0 | AL44: 0 | AM44: 0 | AP44: 0 | AQ44: 0 | AR44: 0 | AS44: 0 | AT44: 0 | AU44: 0
AG45: Car | AH45: 17420.14182 | AI45: 3852.531364 | AJ45: 25125.20455 | AK45: 65493.03318 | AL45: 5583.378788 | AM45: 0 | AO45: Car | AP45: 2482370.209 | AQ45: 548985.7193 | AR45: 3580341.648 | AS45: 9332757.228 | AT45: 2247309.962 | AU45: 0
AH46: 0 | AI46: 0 | AJ46: 0 | AK46: 0 | AL46: 0 | AM46: 0 | AP46: 0 | AQ46: 0 | AR46: 0 | AS46: 0 | AT46: 0 | AU46: 0
AH47: 0 | AI47: 0 | AJ47: 0 | AK47: 0 | AL47: 0 | AM47: 0 | AP47: 0 | AQ47: 0 | AR47: 0 | AS47: 0 | AT47: 0 | AU47: 0
AH48: 0 | AI48: 0 | AJ48: 0 | AK48: 0 | AL48: 0 | AM48: 0 | AP48: 0 | AQ48: 0 | AR48: 0 | AS48: 0 | AT48: 0 | AU48: 0
AH49: 0 | AI49: 0 | AJ49: 0 | AK49: 0 | AL49: 0 | AM49: 0 | AP49: 0 | AQ49: 0 | AR49: 0 | AS49: 0 | AT49: 0 | AU49: 0
AH50: 0 | AI50: 0 | AJ50: 0 | AK50: 0 | AL50: 0 | AM50: 0 | AP50: 0 | AQ50: 0 | AR50: 0 | AS50: 0 | AT50: 0 | AU50: 0
AH51: 0 | AI51: 0 | AJ51: 0 | AK51: 0 | AL51: 0 | AM51: 0 | AP51: 0 | AQ51: 0 | AR51: 0 | AS51: 0 | AT51: 0 | AU51: 0
AH52: 0 | AI52: 0 | AJ52: 0 | AK52: 0 | AL52: 0 | AM52: 0 | AP52: 0 | AQ52: 0 | AR52: 0 | AS52: 0 | AT52: 0 | AU52: 0
AH53: 0 | AI53: 0 | AJ53: 0 | AK53: 0 | AL53: 0 | AM53: 0 | AP53: 0 | AQ53: 0 | AR53: 0 | AS53: 0 | AT53: 0 | AU53: 0
AH54: 330.1527273 | AI54: 121.6909091 | AJ54: 39.68181818 | AK54: 60.84545455 | AL54: 881.8181818 | AM54: 960.3 | AP54: 47046.76364 | AQ54: 17340.95455 | AR54: 5654.659091 | AS54: 8670.477273 | AT54: 354931.8182 | AU54: 136842.75
AH55: 45.85454545 | AI55: 30.42272727 | AJ55: 6.613636364 | AK55: 5.070454545 | AL55: 14.6969697 | AM55: 800.25 | AP55: 6534.272727 | AQ55: 4335.238636 | AR55: 942.4431818 | AS55: 722.5397727 | AT55: 5915.530303 | AU55: 114035.625
AH56: 0 | AI56: 0 | AJ56: 0 | AK56: 0 | AL56: 0 | AM56: 0 | AP56: 0 | AQ56: 0 | AR56: 0 | AS56: 0 | AT56: 0 | AU56: 0

Sheet EnergyPerformanceData (hidden)
A1: Building energy perfromance data [kWh/m2] | B1: =COUNTA(A2:A131) -> 130 | G1: Infrastructure Energy performance data | J1: Klimasone
A2: Residential individual housing | B2: Heating | C2: Hot Water | D2: Cooling | E2: Electric | G2: Outdoor lighting | H2: kWh/unit | J2: Klimasone | K2: DUT | L2: Mean T | M2: Heating days | N2: degree days | O2: Rel degree days
A3: Passivhouse | B3: 15.2 | C3: 29.8 | D3: 0 | E3: 33 | G3: High efficicency | H3: 160 | J3: 1. Sør-Norge, innland | K3: -21.4 | L3: 5.1 | M3: 250 | N3: 4051 | O3: 1
A4: Low energy | B4: 30 | C4: 29.8 | D4: 0 | E4: 33 | G4: Low efficiency | H4: 550 | J4: 2. Sør-Norge, kyst | K4: -14.2 | L4: 7.1 | M4: 237 | N4: 3179 | O4: 0.78
A5: TEK 10 | B5: 57.9 | C5: 29.8 | D5: 0 | E5: 32.9 | G5: Manual | J5: 3. Sør-Norge, høyfjell | K5: -28.3 | L5: 2.3 | M5: 277 | N5: 5101 | O5: 1.26
A6: TEK 07 | B6: 57.9 | C6: 29.8 | D6: 0 | E6: 32.9 | G6: Snow Melting | H6: kWh/m2 | J6: 4. Midt-Norge, kyst | K6: -15.6 | L6: 5.4 | M6: 265 | N6: 3763 | O6: 0.93
A7: TEK 97 | B7: 84.2 | C7: 29.8 | D7: 0 | E7: 41.9 | G7: High efficicency | H7: 100 | J7: 5. Midt-Norge, innland | K7: -23.9 | L7: 3 | M7: 274 | N7: 4772 | O7: 1.18
A8: TEK 87 | B8: 164.8 | C8: 29.8 | D8: 0 | E8: 34.7 | G8: Low efficiency | H8: 350 | J8: 6. Nord-Norge, kyst | K8: -13.9 | L8: 3.8 | M8: 286 | N8: 4329 | O8: 1.07
A9: TEK 69 | B9: 169 | C9: 29.8 | D9: 0 | E9: 34.7 | G9: Manual | J9: 7. Finnmark og innland Troms | K9: -24.5 | L9: 0.7 | M9: 319 | N9: 5766 | O9: 1.42
A10: TEK 49 | B10: 204.8 | C10: 29.8 | D10: 0 | E10: 34.7
A11: Older | B11: 258.9 | C11: 29.8 | D11: 0 | E11: 34.7
A12: Residential apartment building | B12: Heating | C12: Hot Water | D12: Cooling | E12: Electric
A13: Passivhouse | B13: 15.2 | C13: 29.8 | D13: 0 | E13: 33
A14: Low energy | B14: 30 | C14: 29.8 | D14: 0 | E14: 33
A15: TEK 10 | B15: 36.2 | C15: 29.8 | D15: 0 | E15: 33.5
A16: TEK 07 | B16: 36.2 | C16: 29.8 | D16: 0 | E16: 33.5
A17: TEK 97 | B17: 48.2 | C17: 29.8 | D17: 0 | E17: 42.7
A18: TEK 87 | B18: 99.7 | C18: 29.8 | D18: 0 | E18: 35.1
A19: TEK 69 | B19: 97.2 | C19: 29.8 | D19: 0 | E19: 35.1
A20: TEK 49 | B20: 170.7 | C20: 29.8 | D20: 0 | E20: 35.1
A21: Older | B21: 190.9 | C21: 29.8 | D21: 0 | E21: 35.2
A22: Office building | B22: Heating | C22: Hot Water | D22: Cooling | E22: Electric
A23: Passivhouse | B23: 20 | C23: 5 | D23: 9 | E23: 44
A24: Low energy | B24: 23.2 | C24: 5 | D24: 9.8 | E24: 63.2
A25: TEK 10 | B25: 40.2 | C25: 5 | D25: 15.7 | E25: 75.2
A26: TEK 07 | B26: 59.4 | C26: 5 | D26: 18.8 | E26: 84
A27: TEK 97 | B27: 78.3 | C27: 5 | D27: 20.8 | E27: 100.3
A28: TEK 87 | B28: 96.4 | C28: 5 | D28: 21.4 | E28: 127.8
A29: TEK 69 | B29: 162.6 | C29: 5 | D29: 11.4 | E29: 107.8
A30: TEK 49 | B30: 173.5 | C30: 5 | D30: 0 | E30: 92.4
A31: Older | B31: 188.7 | C31: 5 | D31: 0 | E31: 82.8
A32: Kindergarten | B32: Heating | C32: Hot Water | D32: Cooling | E32: Electric
A33: Passivhouse | B33: 28 | C33: 10 | D33: 5 | E33: 29
A34: Low energy | B34: 48.4 | C34: 10 | D34: 0 | E34: 31.6
A35: TEK 10 | B35: 80.2 | C35: 10 | D35: 0 | E35: 41.2
A36: TEK 07 | B36: 100.6 | C36: 10 | D36: 0 | E36: 49.2
A37: TEK 97 | B37: 129.5 | C37: 10 | D37: 0 | E37: 66.2
A38: TEK 87 | B38: 163.2 | C38: 10 | D38: 0 | E38: 90.2
A39: TEK 69 | B39: 287 | C39: 10 | D39: 0 | E39: 72.8
A40: TEK 49 | B40: 339.6 | C40: 10 | D40: 0 | E40: 45.9
A41: Older | B41: 381.1 | C41: 10 | D41: 0 | E41: 45.9
A42: School | B42: Heating | C42: Hot Water | D42: Cooling | E42: Electric
A43: Passivhouse | B43: 20.2 | C43: 9.8 | D43: 5 | E43: 30
A44: Low energy | B44: 30 | C44: 9.8 | D44: 0 | E44: 37.7
A45: TEK 10 | B45: 50.1 | C45: 9.8 | D45: 0 | E45: 51.2
A46: TEK 07 | B46: 73.4 | C46: 9.8 | D46: 0 | E46: 59.8
A47: TEK 97 | B47: 104.1 | C47: 9.8 | D47: 0 | E47: 78.3
A48: TEK 87 | B48: 127.2 | C48: 9.8 | D48: 0 | E48: 103.3
A49: TEK 69 | B49: 196.6 | C49: 9.8 | D49: 0 | E49: 77.9
A50: TEK 49 | B50: 208.3 | C50: 9.8 | D50: 0 | E50: 54.7
A51: Older | B51: 227.3 | C51: 9.8 | D51: 0 | E51: 54.7
A52: University/Collage | B52: Heating | C52: Hot Water | D52: Cooling | E52: Electric
A53: Passivhouse
A54: Low energy | B54: 21.3 | C54: 5 | D54: 10.8 | E54: 68.1
A55: TEK 10 | B55: 39.4 | C55: 5 | D55: 19.6 | E55: 79.8
A56: TEK 07 | B56: 63.1 | C56: 5 | D56: 23.4 | E56: 89.8
A57: TEK 97 | B57: 83 | C57: 5 | D57: 25.8 | E57: 110.2
A58: TEK 87 | B58: 102.5 | C58: 5 | D58: 26.6 | E58: 138.8
A59: TEK 69 | B59: 174 | C59: 5 | D59: 15.1 | E59: 115.2
A60: TEK 49 | B60: 167.1 | C60: 5 | D60: 0 | E60: 82.7
A61: Older | B61: 182.2 | C61: 5 | D61: 0 | E61: 82.8
A62: Hospital | B62: Heating | C62: Hot Water | D62: Cooling | E62: Electric
A63: Passivhouse
A64: Low energy | B64: 54.7 | C64: 29.8 | D64: 21 | E64: 112.1
A65: TEK 10 | B65: 62.9 | C65: 29.8 | D65: 30.5 | E65: 131.6
A66: TEK 07 | B66: 114.8 | C66: 29.8 | D66: 37.5 | E66: 151.7
A67: TEK 97 | B67: 136.4 | C67: 29.8 | D67: 42 | E67: 192.7
A68: TEK 87 | B68: 144.3 | C68: 29.8 | D68: 43.6 | E68: 247.1
A69: TEK 69 | B69: 181.4 | C69: 29.8 | D69: 19.6 | E69: 186.8
A70: TEK 49 | B70: 134.6 | C70: 29.8 | D70: 0 | E70: 135.4
A71: Older | B71: 149.3 | C71: 29.8 | D71: 0 | E71: 135.6
A72: Nursing home | B72: Heating | C72: Hot Water | D72: Cooling | E72: Electric
A73: Passivhouse | B73: 20.2 | C73: 29.8 | D73: 11 | E73: 70
A74: Low energy | B74: 38.6 | C74: 29.8 | D74: 0 | E74: 76.5
A75: TEK 10 | B75: 59.2 | C75: 29.8 | D75: 0 | E75: 100
A76: TEK 07 | B76: 99 | C76: 29.8 | D76: 0 | E76: 118.8
A77: TEK 97 | B77: 132.7 | C77: 29.8 | D77: 0 | E77: 154.8
A78: TEK 87 | B78: 149.1 | C78: 29.8 | D78: 0 | E78: 207.7
A79: TEK 69 | B79: 177.1 | C79: 29.8 | D79: 0 | E79: 147.6
A80: TEK 49 | B80: 169.9 | C80: 29.8 | D80: 0 | E80: 112.3
A81: Older | B81: 188.5 | C81: 29.8 | D81: 0 | E81: 112.4
A82: Hotel | B82: Heating | C82: Hot Water | D82: Cooling | E82: Electric
A83: Passivhouse
A84: Low energy | B84: 44 | C84: 29.8 | D84: 11.9 | E84: 56.2
A85: TEK 10 | B85: 70.1 | C85: 29.8 | D85: 20.5 | E85: 75.1
A86: TEK 07 | B86: 100.9 | C86: 29.8 | D86: 25.5 | E86: 91.9
A87: TEK 97 | B87: 130.3 | C87: 29.8 | D87: 28.6 | E87: 118.2
A88: TEK 87 | B88: 137.3 | C88: 29.8 | D88: 29.7 | E88: 167.9
A89: TEK 69 | B89: 194 | C89: 29.8 | D89: 14.9 | E89: 132.1
A90: TEK 49 | B90: 187.5 | C90: 29.8 | D90: 0 | E90: 94.7
A91: Older | B91: 206.3 | C91: 29.8 | D91: 0 | E91: 94.8
A92: Sports Facility | B92: Heating | C92: Hot Water | D92: Cooling | E92: Electric
A93: Passivhouse | B93: 20 | C93: 49 | D93: 6 | E93: 26 | F93: 101
A94: Low energy | B94: 49.2 | C94: 49 | D94: 0 | E94: 28.9
A95: TEK 10 | B95: 76 | C95: 49 | D95: 0 | E95: 38.2
A96: TEK 07 | B96: 96.7 | C96: 49 | D96: 0 | E96: 46.1
A97: TEK 97 | B97: 141.2 | C97: 49 | D97: 0 | E97: 63
A98: TEK 87 | B98: 170.7 | C98: 49 | D98: 0 | E98: 86.8
A99: TEK 69 | B99: 301.5 | C99: 49 | D99: 0 | E99: 78.3
A100: TEK 49 | B100: 295.8 | C100: 49 | D100: 0 | E100: 42.7
A101: Older | B101: 326.3 | C101: 49 | D101: 0 | E101: 42.7
A102: Comercial building | B102: Heating | C102: Hot Water | D102: Cooling | E102: Electric
A103: Passivhouse | B103: 25.5 | C103: 10.5 | D103: 22 | E103: 65
A104: Low energy | B104: 30.4 | C104: 10.5 | D104: 18.7 | E104: 72.8
A105: TEK 10 | B105: 73 | C105: 10.5 | D105: 34.1 | E105: 92.3
A106: TEK 07 | B106: 117.5 | C106: 10.5 | D106: 40.8 | E106: 112
A107: TEK 97 | B107: 139.1 | C107: 10.5 | D107: 45 | E107: 148.2
A108: TEK 87 | B108: 140.6 | C108: 10.5 | D108: 46.4 | E108: 209.6
A109: TEK 69 | B109: 137.8 | C109: 10.5 | D109: 12.7 | E109: 138
A110: TEK 49 | B110: 141.9 | C110: 10.5 | D110: 0 | E110: 110.1
A111: Older | B111: 156.8 | C111: 10.5 | D111: 0 | E111: 110.2
A112: Cultural building | B112: Heating | C112: Hot Water | D112: Cooling | E112: Electric
A113: Passivhouse | B113: 25 | C113: 10 | D113: 8 | E113: 29
A114: Low energy | B114: 39.4 | C114: 10 | D114: 6.7 | E114: 32.3
A115: TEK 10 | B115: 79.7 | C115: 10 | D115: 16.4 | E115: 44
A116: TEK 07 | B116: 103.1 | C116: 10 | D116: 19.4 | E116: 52.7
A117: TEK 97 | B117: 130.7 | C117: 10 | D117: 21.4 | E117: 70.5
A118: TEK 87 | B118: 149.9 | C118: 10 | D118: 22.1 | E118: 96.7
A119: TEK 69 | B119: 210 | C119: 10 | D119: 10.4 | E119: 71.2
A120: TEK 49 | B120: 231.8 | C120: 10 | D120: 0 | E120: 47.4
A121: Older | B121: 252.7 | C121: 10 | D121: 0 | E121: 47.4
A122: Industry/Workshop | B122: Heating | C122: Hot Water | D122: Cooling | E122: Electric
A123: Passivhouse
A124: Low energy | B124: 48.1 | C124: 10 | D124: 5.7 | E124: 47.9
A125: TEK 10 | B125: 78.2 | C125: 10 | D125: 15 | E125: 60.4
A126: TEK 07 | B126: 99.1 | C126: 10 | D126: 17.7 | E126: 68
A127: TEK 97 | B127: 128.2 | C127: 10 | D127: 19.5 | E127: 83.5
A128: TEK 87 | B128: 161.3 | C128: 10 | D128: 20.2 | E128: 105.3
A129: TEK 69 | B129: 313.5 | C129: 10 | D129: 16.1 | E129: 97.6
A130: TEK 49 | B130: 303.6 | C130: 10 | D130: 0 | E130: 60.1
A131: Older | B131: 333.2 | C131: 10 | D131: 0 | E131: 60.1

Sheet LocalEnergySupplyData (hidden)
A1: Emission Factors | B1: Emissions [gCO2/kWh] | F1: Tall må oppdateres og sjekkes
A2: Energy Sources | B2: Indirect | C2: upstream | D2: Total
A3: Electricity | B3: 17 | C3: 0 | D3: 123
A4: Solar Thermal | B4: 0 | C4: 0 | D4: =SUM(B4:C4) -> 0
A5: Firewood | B5: 14 | C5: 0 | D5: 14
A6: Wood Chips | B6: 14 | C6: 0 | D6: 14
A7: Pellets | B7: 25 | C7: 0 | D7: 25
A8: Bio-oil | B8: 25 | C8: 0 | D8: 25
A9: Bio-gas | B9: 10 | C9: 0 | D9: 10
A10: Waste | B10: 138 | C10: 0 | D10: 138
A11: Fossile oil | B11: 50 | C11: 265 | D11: 315
A12: LPG | B12: 70 | C12: 234 | D12: 304
A13: Natural Gas | B13: 53 | C13: 202 | D13: 255
B15: Efficiency | F15: CO2 factor
A16: Heating | B16: Production- Efficiency | C16: Distribution- Efficiency | D16: Control- Efficiency | E16: Total Efficiency | F16: Source | G16: Efficiency | H16: Total
A17: Electric heater | B17: 0.99 | C17: 0.99 | D17: 0.9 | E17: =B17*C17*D17 -> 0.88209 | F17: Electricity | G17: 1 | H17: =OFFSET($A$3,MATCH(F17,emissionSourcesRange,0)-1,3)/G17 -> 123
A18: Electric boiler | B18: 0.98 | C18: 0.95 | D18: 0.92 | E18: =B18*C18*D18 -> 0.85652 | F18: Electricity | G18: 1 | H18: 123
A19: Solar collector | B19: 1 | C19: 0.95 | D19: 0.95 | E19: 0.9025 | F19: Solar Thermal | G19: 1 | H19: 0
A20: Heat pump | B20: 2.55 | C20: 0.95 | D20: 0.93 | E20: 2.252925 | F20: Electricity | G20: 1 | H20: 123
A21: Wood chip boiler | B21: 0.85 | C21: 0.97 | D21: 0.9 | E21: =B21*C21*D21 -> 0.74205 | F21: Wood Chips | G21: 1 | H21: 14
A22: Pellets boiler | B22: 0.85 | C22: 0.975 | D22: 0.9 | E22: 0.745875 | F22: Pellets | G22: 1 | H22: 25
A23: Wood-burning Stove | B23: 0.8 | C23: 1 | D23: 0.8 | E23: 0.64 | F23: Firewood | G23: 1 | H23: 14
A24: Bio-oil boiler | B24: 0.85 | C24: 0.95 | D24: 0.94 | E24: 0.75905 | F24: Bio-oil | G24: 1 | H24: 25
A25: Oil boiler | B25: 0.85 | C25: 0.95 | D25: 0.95 | E25: 0.767125 | F25: Fossile oil | G25: 1 | H25: 315
A26: LPG boiler | B26: 0.95 | C26: 0.95 | D26: 0.95 | E26: 0.857375 | F26: LPG | G26: 1 | H26: 304
A27: District Heating | B27: 0.98 | C27: 0.95 | D27: 0.93 | E27: 0.86583
A29: Hot Water
A30: Electric water heater | B30: 0.99 | C30: 0.6 | D30: 0.98 | E30: =B30*C30*D30 -> 0.58212 | F30: Electricity | G30: 1 | H30: =OFFSET($A$3,MATCH(F30,emissionSourcesRange,0)-1,3)/G30 -> 123
A31: Electric bolier | B31: 0.98 | C31: 0.6 | D31: 0.92 | E31: =B31*C31*D31 -> 0.54096 | F31: Electricity | G31: 1 | H31: 123
A32: Solar collector | B32: 1 | C32: 0.6 | D32: 0.95 | E32: =B32*C32*D32 -> 0.57 | F32: Solar Thermal | G32: 1 | H32: 0
A33: Heat Pump | B33: 2.55 | C33: 0.6 | D33: 0.93 | E33: 1.4229 | F33: Electricity | G33: 1 | H33: 123
A34: Wood chip boiler | B34: 0.85 | C34: 0.6 | D34: 0.9 | E34: =B34*C34*D34 -> 0.459 | F34: Wood Chips | G34: 1 | H34: 14
A35: Pellets boiler | B35: 0.85 | C35: 0.6 | D35: 0.9 | E35: 0.459 | F35: Pellets | G35: 1 | H35: 25
A36: Bio-oil boiler | B36: 0.85 | C36: 0.6 | D36: 0.94 | E36: =B36*C36*D36 -> 0.4794 | F36: Bio-oil | G36: 1 | H36: 25
A37: Oil boiler | B37: 0.85 | C37: 0.6 | D37: 0.95 | E37: 0.4845 | F37: Fossile oil | G37: 1 | H37: 315
A38: LPG boiler | B38: 0.95 | C38: 0.6 | D38: 0.95 | E38: 0.5415 | F38: LPG | G38: 1 | H38: 304
A39: District Heating | B39: 0.98 | C39: 0.6 | D39: 0.93 | E39: 0.54684
A41: Cooling
A42: Local Chiller | B42: 2.45 | C42: 1 | D42: 1 | E42: =B42*C42*D42 -> 2.45 | F42: Electricity | G42: 1 | H42: =OFFSET($A$3,MATCH(F42,emissionSourcesRange,0)-1,3)/G42 -> 123
A43: District cooling | B43: 2.5 | C43: 0.95 | D43: 0.93 | E43: 2.20875 | F43: Electricity | G43: 1 | H43: =OFFSET($A$3,MATCH(F43,emissionSourcesRange,0)-1,3)/G43 -> 123
A45: Electric
A46: Electric consumption | B46: 1 | C46: 1 | D46: 1 | E46: =B46*C46*D46 -> 1 | F46: Electricity | G46: 1 | H46: =OFFSET($A$3,MATCH(F46,emissionSourcesRange,0)-1,3)/G46 -> 123
A48: Local energy plant sources
A49: Electricity | F49: Electricity | G49: 1 | H49: =OFFSET($A$3,MATCH(F49,emissionSourcesRange,0)-1,3)/G49 -> 123
A50: Sun | F50: Solar Thermal | G50: 1 | H50: =OFFSET($A$3,MATCH(F50,emissionSourcesRange,0)-1,3)/G50 -> 0
A51: Surplus Heat
A52: Waste Incineration | F52: Waste | G52: 1 | H52: =OFFSET($A$3,MATCH(F52,emissionSourcesRange,0)-1,3)/G52 -> 138
A53: Wood Chips | F53: Wood Chips | G53: 1 | H53: 14
A54: Pellets | F54: Pellets | G54: 1 | H54: 25
A55: Bio-oil | F55: Bio-oil | G55: 1 | H55: 25
A56: Bio-gas | F56: Bio-gas | G56: 1 | H56: 10
A57: Fossile Oil | F57: Fossile oil | G57: 1 | H57: 315
A58: LPG | F58: LPG | G58: 1 | H58: 304

Sheet Lists (hidden)
A1: Building Categories | B1: Building performance data | C1: Energy Certificates | D1: Ownership | E1: PV input | F1: Energy technology
A2: Residential individual housing | B2: Passivhouse | C2: A | D2: Public | E2: Auto | F2: Fossile
A3: Residential apartment building | B3: Low energy | C3: B | D3: Private | E3: Manual | F3: Renewable/electric
A4: Office building | B4: TEK 10 | C4: C | D4: Housing cooperative
A5: Kindergarten | B5: TEK 07 | C5: D
A6: School | B6: TEK 97 | C6: E
A7: University/Collage | B7: TEK 87 | C7: F
A8: Hospital | B8: TEK 69 | C8: G
A9: Nursing home | B9: TEK 49
A10: Hotel | B10: Older
A11: Sports Facility | B11: Simulation
A12: Comercial building | B12: Measurements
A13: Cultural building
A14: Industry/Workshop
A16: Local energy plant list
A17: CHP
A18: Solar PV
A19: Solar Thermal
A20: Boiler
A21: Heat Pump
A22: Direct connection
A24: Goal Catergory List | B24: Unit List | C24: Comparison
A25: Energy Consumption | B25: Absolute | C25: Absolute
A26: Energy Generation | B26: /m2 BRA | C26: % Increase
A27: Mismatch | B27: /inhabitant | C27: % Reduction
B28: /person
A29: Mobility
A30: Carbon Emission
A32: Goal List | B32: # KPIs | C32: CO2-reduction | D32: Increased use of renewable energy | E32: Increased energy efficiency | F32: Increased use of local energy sources | G32: Green mobility
A33: CO2-reduction | C33: =COUNTA(C34:C43) -> 3 | D33: =COUNTA(D34:D41) -> 7 | E33: =COUNTA(E34:E42) -> 3 | F33: =COUNTA(F34:F42) -> 7 | G33: =COUNTA(G34:G41) -> 2
A34: Increased use of renewable energy | C34: CO2 emissions | D34: % of different kinds of RES in district heating | E34: Energy Use | F34: Installed capacity of RES | G34: Modal Split
A35: Increased energy efficiency | C35: # fossil free construction sites | D35: # fossile free construction sites | E35: % of buildings with Energy Certificate at each of the grades | F35: Generated energy by RES | G35: # filling stations with RES fuel for public access
A36: Increased use of local energy sources | C36: Number of registered oil tanks | D36: Installed capacity of RES | E36: % of buildings with measurement values for energy performance | F36: Buildings with installed Solar Energy System
A37: Green mobility | D37: Generated energy by RES | F37: Use of secondary heat
D38: Buildings with installed Solar Energy System | F38: Buildings connected to district thermal energy
D39: Buildings connected to district thermal energy | F39: Peak Load Production
D40: Number of registered oil tanks | F40: Energy Storage
A45: Location List
A46: Oslo og Akershus
A47: Bergen, Trondheim og Stavanger area
A48: Other Cities

Sheet KPIResults
A1: Scenario | G1: Initial
A3: Key Data | C3: Category | D3: Sub-Category | E3: Sectors | F3: Unit
A4: Year | G4: 2015
A5: Population | F5: # | G5: 280
A6: Number of jobs | F6: # | G6: 150
A7: Other Users | F7: # | G7: 105
A8: Building area | E8: Total | F8: m2 | G8: 25000
E9: Residential buildings | F9: m2 | G9: 20000
E10: Public buildings | F10: m2 | G10: 0
E11: Private buildings | F11: m2 | G11: 5000
A12: Number of buildings | E12: Total | F12: # | G12: 2
E13: Residential buildings | F13: # | G13: 1
E14: Public buildings | F14: # | G14: 0
E15: Private buildings | F15: # | G15: 1
A17: KPI | C17: Category | D17: Sub-Category | E17: Sectors | F17: Unit
A18: Energy Use | C18: Total | D18: Total | E18: Total | F18: kWh | G18: 4867800.28
E19: Residential buildings | F19: kWh | G19: 3986384.189
E20: Public buildings | F20: kWh | G20: 0
E21: Private buildings | F21: kWh | G21: 802715.4891
E22: Infrastructure | F22: kWh | G22: 78700.60244
C23: Electric | D23: Total | E23: Total | F23: kWh | G23: 4867800.28
E24: Residential buildings | F24: kWh | G24: 3986384.189
E25: Public buildings | F25: kWh | G25: 0
E26: Private buildings | F26: kWh | G26: 802715.4891
E27: Infrastructure | F27: kWh | G27: 78700.60244
D28: Buildings | E28: Total | F28: kWh | G28: 4789099.678
E29: Residential buildings | F29: kWh | G29: 3986384.189
E30: Public buildings | F30: kWh | G30: 0
E31: Private buildings | F31: kWh | G31: 802715.4891
D32: Infrastructure | E32: Total | F32: kWh | G32: 78700.60244
E33: Outdoor lighting | F33: kWh | G33: 32000
E34: Transport | F34: kWh | G34: 0
E35: Other | F35: kWh | G35: 46700.60244
C36: Thermal | D36: Total | E36: Total | F36: kWh | G36: 0
E37: Solar | F37: kWh | G37: 0
E38: Biofuel | F38: kWh | G38: 0
E39: Oil | F39: kWh | G39: 0
E40: Gas | F40: kWh | G40: 0
E41: District heating | F41: kWh | G41: 0
D42: Residential Buildings | E42: Total | F42: kWh | G42: 0
E43: Solar | F43: kWh | G43: 0
E44: Biofuel | F44: kWh | G44: 0
E45: Oil | F45: kWh | G45: 0
E46: Gas | F46: kWh | G46: 0
E47: District heating | F47: kWh | G47: 0
D48: Public Buildings | E48: Total | F48: kWh | G48: 0
E49: Solar | F49: kWh | G49: 0
E50: Biofuel | F50: kWh | G50: 0
E51: Oil | F51: kWh | G51: 0
E52: Gas | F52: kWh | G52: 0
E53: District heating | F53: kWh | G53: 0
D54: Private Buildings | E54: Total | F54: kWh | G54: 0
E55: Solar | F55: kWh | G55: 0
E56: Biofuel | F56: kWh | G56: 0
E57: Oil | F57: kWh | G57: 0
E58: Gas | F58: kWh | G58: 0
E59: District heating | F59: kWh | G59: 0
D60: Infrastructure | E60: Total | F60: kWh | G60: 0
E61: Solar | F61: kWh | G61: 0
E62: Biofuel | F62: kWh | G62: 0
E63: Oil | F63: kWh | G63: 0
E64: Gas | F64: kWh | G64: 0
E65: District heating | F65: kWh | G65: 0
A66: % of energy sources delivering to district heating system | C66: Total | F66: % | G66: 10.672
C67: Electricity | F67: % | G67: 30.728
C68: Surplus and Ambient Heat | F68: % | G68: 5.372
C69: Solar | F69: % | G69: 0
C70: Biofuel | F70: % | G70: 5.3
C71: Waste | F71: % | G71: 57.6
C72: Oil | F72: % | G72: 0.2
C73: Gas | F73: % | G73: 0.8
A74: % of buildings with Energy Certificate at each of the grades | C74: Total registered | F74: % | G74: 100
C75: Certificate A | F75: % | G75: 0
C76: Certificate B | F76: % | G76: 0
C77: Certificate C | F77: % | G77: 0
C78: Certificate D | F78: % | G78: 0
C79: Certificate E | F79: % | G79: 50
C80: Certificate F | F80: % | G80: 50
C81: Certificate G | F81: % | G81: 0
C82: Not registered | F82: % | G82: 0
A83: % of buildings with measurement values for energy performance | E83: Total | F83: % | G83: 0
E84: Residential buildings | F84: % | G84: 0
E85: Public buildings | F85: % | G85: 0
E86: Private buildings | F86: % | G86: 0
A87: Installed capacity of RES | C87: Total | D87: Total | F87: kW | G87: 0
D88: Solar | F88: kW | G88: 0
D89: CHP Waste | F89: kW | G89: 0
D90: CHP Biomass | F90: kW | G90: 0
C91: Electric | D91: Total | F91: kW | G91: 0
D92: Solar | F92: kW | G92: 0
D93: CHP Waste | F93: kW | G93: 0
D94: CHP Biomass | F94: kW | G94: 0
C95: Thermal | D95: Total | F95: kW | G95: 0
D96: Solar | F96: kW | G96: 0
D97: CHP Waste | F97: kW | G97: 0
D98: CHP Biomass | F98: kW | G98: 0
A99: Generated energy by RES | C99: Total | D99: Total | F99: kWh | G99: 0
D100: Solar | F100: kWh | G100: 0
D101: CHP Waste | F101: kWh | G101: 0
D102: CHP Biomass | F102: kWh | G102: 0
C103: Electric | D103: Total | F103: kWh | G103: 0
D104: Solar | F104: kWh | G104: 0
D105: CHP Waste | F105: kWh | G105: 0
D106: CHP Biomass | F106: kWh | G106: 0
C107: Thermal | D107: Total | F107: kWh | G107: 0
D108: Solar | F108: kWh | G108: 0
D109: CHP Waste | F109: kWh | G109: 0
D110: CHP Biomass | F110: kWh | G110: 0
A111: # of buildings with installed solar energy system | C111: Total | E111: Total | F111: # | G111: 0
E112: Residential buildings | F112: # | G112: 0
E113: Public buildings | F113: # | G113: 0
E114: Private buildings | F114: # | G114: 0
C115: Electric | E115: Total | F115: # | G115: 0
E116: Residential buildings | F116: # | G116: 0
E117: Public buildings | F117: # | G117: 0
E118: Private buildings | F118: # | G118: 0
C119: Thermal | E119: Total | F119: # | G119: 0
E120: Residential buildings | F120: # | G120: 0
E121: Public buildings | F121: # | G121: 0
E122: Private buildings | F122: # | G122: 0
A123: # of buildings connected to a district thermal energy system | E123: Total | F123: # | G123: 0
E124: Residential buildings | F124: # | G124: 0
E125: Public buildings | F125: # | G125: 0
E126: Private buildings | F126: # | G126: 0
A127: Use of secondary heat | F127: kWh
A128: Peak Load Consumption | C128: Total | F128: kW
C129: Electric | F129: kW
C130: Thermal DH | F130: kW
A131: Peak Load Production | C131: Total | F131: kW
C132: Electric | F132: kW
C133: Thermal DH | F133: kW
A134: Modal split | C134: Total | F134: % | G134: 100
C135: Bike/Walk | F135: % | G135: 17.37180576
C136: Fossil free Car | F136: % | G136: 4.237544893
C137: Fossil fuel Car | F137: % | G137: 52.04277627
C138: Fossil free Public transport | F138: % | G138: 15.80872385
C139: Fossil fuel Public transport | F139: % | G139: 10.53914923
A140: # filling stations with RES fuel for public access | C140: Total | F140: #
A141: CO2 emissions | C141: Total | F141: tonnes | G141: 738.9411478
C142: Stationary Energy | D142: Total | E142: Total | F142: tonnes | G142: 598.7394345
E143: Residential buildings | F143: tonnes | G143: 490.3252552
E144: Public buildings | F144: tonnes | G144: 0
E145: Private buildings | F145: tonnes | G145: 98.73400516
E146: Infrastructure | F146: tonnes | G146: 9.6801741
E147: Local Energy Plant | F147: tonnes | G147: 0
D148: Electricity | E148: Total | F148: tonnes | G148: 598.7394345
E149: Residential buildings | F149: tonnes | G149: 490.3252552
E150: Public buildings | F150: tonnes | G150: 0
E151: Private buildings | F151: tonnes | G151: 98.73400516
E152: Infrastructure | F152: tonnes | G152: 9.6801741
E153: Local Energy Plant | F153: tonnes | G153: 0
D154: Biofuel | E154: Total | F154: tonnes | G154: 0
E155: Residential buildings | F155: tonnes | G155: 0
E156: Public buildings | F156: tonnes | G156: 0
E157: Private buildings | F157: tonnes | G157: 0
E158: Infrastructure | F158: tonnes | G158: 0
D159: Fossile fuel | E159: Total | F159: tonnes | G159: 0
E160: Residential buildings | F160: tonnes | G160: 0
E161: Public buildings | F161: tonnes | G161: 0
E162: Private buildings | F162: tonnes | G162: 0
E163: Infrastructure | F163: tonnes | G163: 0
D164: District heating | E164: Total | F164: tonnes | G164: 0
E165: Residential buildings | F165: tonnes | G165: 0
E166: Public buildings | F166: tonnes | G166: 0
E167: Private buildings | F167: tonnes | G167: 0
E168: Infrastructure | F168: tonnes | G168: 0
E169: Local Energy Plant | F169: tonnes | G169: 0
C170: Mobility | E170: Total | F170: tonnes | G170: 140.2017133
E171: Private cars | F171: tonnes | G171: 89.69340282
E172: Public transport | F172: tonnes | G172: 21.70881504
E173: Goods transport | F173: tonnes | G173: 28.79949545
C174: Materials | E174: Total | F174: tonnes | G174: 0
E175: Residential buildings | F175: tonnes | G175: 0
E176: Public buildings | F176: tonnes | G176: 0
E177: Private buildings | F177: tonnes | G177: 0
A178: # fossil free construction sites | C178: Total | E178: Total | F178: #
E179: Residential buildings | F179: #
E180: Public buildings | F180: #
E181: Private buildings | F181: #
C182: Construction Machines and Transportation | E182: Total | F182: #
E183: Residential buildings | F183: #
E184: Public buildings | F184: #
E185: Private buildings | F185: #
C186: Energy production | E186: Total | F186: #
E187: Residential buildings | F187: #
E188: Public buildings | F188: #
E189: Private buildings | F189: #
A190: # of registered oil tanks | E190: Total | F190: #
E191: Residential buildings | F191: #
E192: Public buildings | F192: #
E193: Private buildings | F193: #

Sheet KPIs summary list (hidden)
A1: KPI | B1: Goal s | C1: Sub-categories | E1: Sectors | F1: Unit
A2: Name | B2: Name | C2: 1 | D2: 2
A3: CO2 emissions | B3: CO2-reduction | C3: Stationary Energy | D3: Electricity | E3: Public buildings | F3: Tonnes CO2 eqv.
D4: Biofuel | E4: Residential buildings
D5: Fossile fuel | E5: Private buildings
D6: District heating | E6: Infrastructure
C7: Mobility | E7: Private cars
E8: Taxi
E9: Public transport
E10: Goods transport
E11: Freight transportation
E12: Construction machines
C13: Materials | E13: Public buildings
E14: Residential buildings
E15: Private buildings
A16: Energy Use | B16: Increased energy efficiency | C16: Electric | D16: Buildings | E16: Public buildings | F16: MWh
E17: Residential buildings
E18: Private buildings
D19: Infrastructure | E19: Outdoor lighting
E20: Transport
E21: Other
C22: Thermal | D22: Solar | E22: Public buildings
D23: Biofuel | E23: Residential buildings
D24: Oil | E24: Private buildings
D25: Gas | E25: Infrastructure
D26: District heating
A27: District Heating share of renewables | B27: Increased use of renewable energy | C27: Electricity | F27: %
C28: Heat pump
C29: Solar
C30: Biofuel
C31: Waste
C32: Oil
C33: Gas
A34: Energy Certificate | B34: Increased energy efficiency | C34: Certificate A | E34: Public buildings | F34: %
C35: Certificate B | E35: Residential buildings
C36: Certificate C | E36: Private buildings
C37: Certificate D
C38: Certificate E
C39: Certificate F
C40: Certificate G
C41: Not registered
A42: Use of energy related incentive | B42: Increased energy efficiency | C42: Futurebuildt | E42: Public buildings | F42: #
C43: Enova | E43: Residential buildings
C44: Local | E44: Private buildings
A45: Buildings benchmarked and measuring energy performance | B45: Increased energy efficiency | E45: Public buildings | F45: %
E46: Residential buildings
E47: Private buildings
A48: # fossile free construction sites | B48: CO2-reduction | C48: Construction Machines | E48: Public buildings | F48: #
B49: Increased use of renewable energy | C49: Energy production | E49: Residential buildings
E50: Private buildings
A51: Modal Split | B51: Green mobility (reduced CO2 emissions and better air quality) | C51: Fossil free Car | F51: %
C52: Fossil fuel Car
C53: Fossil free Public transport
C54: Fossil fuel Public transport
C55: Bike
C56: Walk
A57: # filling stations with RES fuel / area/innh. | B57: Green mobility (reduced CO2 emissions and better air quality) | C57: Electric | F57: #
C58: Hydrogen
C59: Biofuel
A60: % fossil free cars of new car registerred | B60: Green mobility (reduced CO2 emissions and better air quality) | C60: Electric | F60: %
C61: Hydrogen
A62: % of berths with power connection | B62: Green mobility (reduced CO2 emissions and better air quality)
A63: RES installed capacity | B63: Increased use of local energy sources | C63: Electric | D63: Solar | F63: kW
B64: Increased use of renewable energy | C64: Thermal | D64: CHP Waste
D65: CHP Biomass
A66: RES generated energy | B66: Increased use of local energy sources | C66: Electric | D66: Solar | F66: MWh
B67: Increased use of renewable energy | C67: Thermal | D67: CHP Waste
D68: CHP Biomass
A69: Buildings with installed RES | B69: Increased use of local energy sources | C69: Electric | D69: Solar | F69: %
B70: Increased use of renewable energy | C70: Thermal
A71: Use of secondary heat | B71: Increased use of local energy sources | F71: MWh
A72: Buildings connected to a district thermal energy | B72: Increased use of local energy sources | F72: %
B73: Increased use of renewable energy
A74: Identification of available resources of renewable energy | B74: Increased use of local energy sources | F74: MWh
B75: Increased use of renewable energy
A76: Number of registered oil tanks | B76: Increased use of renewable energy | F76: #
B77: CO2-reduction
A78: Peak Load Consumption | C78: Electric | F78: kW
C79: Thermal
A80: Peak Load Production | B80: Increased use of local energy sources | C80: Electric | F80: kW
C81: Thermal
A82: Energy Storage | B82: Increased use of local energy sources | C82: Electric | F82: MWh
B83: Increased use of renewable energy | C83: Thermal
